{"text_format":"1","workbook":"xlsx","n_sheets":3,"sheets":["Sheet1","Instructions","Reference Information"],"not_rendered":{"charts":1,"images":5,"macros":1,"external_links":0,"defined_names":0,"comments":0,"pivot_tables":0},"unopened":[],"bounds":{"document_bytes":16777216,"sheet_cells":100000,"rows_first":2000,"rows_last":500,"rows_between":2000,"halvings":0,"cell_chars":16384,"cell_head_chars":4096},"cells_cut":0,"cells_raw":0,"read":"whole","date_system":"1900"}

{"sheet":"Sheet1","index":0,"n_rows":100000,"n_cols":13,"rows_kept":4500,"cut":true,"hidden":false,"merged":[],"bounds":{"rows_first":2000,"rows_last":500,"rows_between":2000,"halvings":0}}
["First","Second","Third","Fourth","Fifth",null,"Type","Count","Percent",null,null,"22",2]
[null,null,null,null,null,{"$f":"IF(COUNT(A2:E2)>0,E2+D2*10+C2*100+B2*1000+A2*10000,-1)","v":-1},"HHHHH",{"$f":"COUNTIF(F:F,11111)","v":0},{"$f":"H2/$H$34","v":{"$error":"#DIV/0!"}}]
[null,null,null,null,null,{"$f":"IF(COUNT(A3:E3)>0,E3+D3*10+C3*100+B3*1000+A3*10000,-1)","v":-1},"HHHHT",{"$f":"COUNTIF(F:F,11110)","v":0},{"$error":"#DIV/0!"}]
[null,null,null,null,null,-1,"HHHTH",{"$f":"COUNTIF(F:F,11101)","v":0},{"$error":"#DIV/0!"}]
[null,null,null,null,null,-1,"HHHTT",{"$f":"COUNTIF(F:F,11100)","v":0},{"$error":"#DIV/0!"}]
[null,null,null,null,null,-1,"HHTHH",{"$f":"COUNTIF(F:F,11011)","v":0},{"$error":"#DIV/0!"}]
[null,null,null,null,null,-1,"HHTHT",{"$f":"COUNTIF(F:F,11010)","v":0},{"$error":"#DIV/0!"}]
[null,null,null,null,null,-1,"HHTTH",{"$f":"COUNTIF(F:F,11001)","v":0},{"$error":"#DIV/0!"}]
[null,null,null,null,null,-1,"HHTTT",{"$f":"COUNTIF(F:F,11000)","v":0},{"$error":"#DIV/0!"}]
[null,null,null,null,null,-1,"HTHHH",{"$f":"COUNTIF(F:F,10111)","v":0},{"$error":"#DIV/0!"}]
[null,null,null,null,null,-1,"HTHHT",{"$f":"COUNTIF(F:F,10110)","v":0},{"$error":"#DIV/0!"}]
[null,null,null,null,null,-1,"HTHTH",{"$f":"COUNTIF(F:F,10101)","v":0},{"$error":"#DIV/0!"}]
[null,null,null,null,null,-1,"HTHTT",{"$f":"COUNTIF(F:F,10100)","v":0},{"$error":"#DIV/0!"}]
[null,null,null,null,null,-1,"HTTHH",{"$f":"COUNTIF(F:F,10011)","v":0},{"$error":"#DIV/0!"}]
[null,null,null,null,null,-1,"HTTHT",{"$f":"COUNTIF(F:F,10010)","v":0},{"$error":"#DIV/0!"}]
[null,null,null,null,null,-1,"HTTTH",{"$f":"COUNTIF(F:F,10001)","v":0},{"$error":"#DIV/0!"}]
[null,null,null,null,null,-1,"HTTTT",{"$f":"COUNTIF(F:F,10000)","v":0},{"$error":"#DIV/0!"}]
[null,null,null,null,null,-1,"THHHH",{"$f":"COUNTIF(F:F,1111)","v":0},{"$error":"#DIV/0!"}]
[null,null,null,null,null,-1,"THHHT",{"$f":"COUNTIF(F:F,1110)","v":0},{"$error":"#DIV/0!"}]
[null,null,null,null,null,-1,"THHTH",{"$f":"COUNTIF(F:F,1101)","v":0},{"$error":"#DIV/0!"}]
[null,null,null,null,null,-1,"THHTT",{"$f":"COUNTIF(F:F,1100)","v":0},{"$error":"#DIV/0!"}]
[null,null,null,null,null,-1,"THTHH",{"$f":"COUNTIF(F:F,1011)","v":0},{"$error":"#DIV/0!"}]
[null,null,null,null,null,-1,"THTHT",{"$f":"COUNTIF(F:F,1010)","v":0},{"$error":"#DIV/0!"}]
[null,null,null,null,null,-1,"THHTT",{"$f":"COUNTIF(F:F,1001)","v":0},{"$error":"#DIV/0!"}]
[null,null,null,null,null,-1,"THTTT",{"$f":"COUNTIF(F:F,1000)","v":0},{"$error":"#DIV/0!"}]
[null,null,null,null,null,-1,"TTHHH",{"$f":"COUNTIF(F:F,111)","v":0},{"$error":"#DIV/0!"}]
[null,null,null,null,null,-1,"TTHHT",{"$f":"COUNTIF(F:F,110)","v":0},{"$error":"#DIV/0!"}]
[null,null,null,null,null,-1,"TTHTH",{"$f":"COUNTIF(F:F,101)","v":0},{"$error":"#DIV/0!"}]
[null,null,null,null,null,-1,"TTHTT",{"$f":"COUNTIF(F:F,100)","v":0},{"$error":"#DIV/0!"}]
[null,null,null,null,null,-1,"TTTHH",{"$f":"COUNTIF(F:F,11)","v":0},{"$error":"#DIV/0!"}]
[null,null,null,null,null,-1,"TTTHT",{"$f":"COUNTIF(F:F,10)","v":0},{"$error":"#DIV/0!"}]
[null,null,null,null,null,-1,"TTTTH",{"$f":"COUNTIF(F:F,1)","v":0},{"$error":"#DIV/0!"}]
[null,null,null,null,null,-1,"TTTTT",{"$f":"COUNTIF(F:F,0)","v":0},{"$f":"H33/$H$34","v":{"$error":"#DIV/0!"}}]
[null,null,null,null,null,-1,null,{"$f":"SUM(H2:H33)","v":0}]
[null,null,null,null,null,-1]
[null,null,null,null,null,-1]
[null,null,null,null,null,-1]
[null,null,null,null,null,-1]
[null,null,null,null,null,-1]
[null,null,null,null,null,-1]
[null,null,null,null,null,-1]
[null,null,null,null,null,-1]
[null,null,null,null,null,-1]
[null,null,null,null,null,-1]
[null,null,null,null,null,-1]
[null,null,null,null,null,-1]
[null,null,null,null,null,-1]
[null,null,null,null,null,-1]
[null,null,null,null,null,-1]
[null,null,null,null,null,-1]
[null,null,null,null,null,-1]
[null,null,null,null,null,-1]
[null,null,null,null,null,-1]
[null,null,null,null,null,-1]
[null,null,null,null,null,-1]
[null,null,null,null,null,-1]
[null,null,null,null,null,-1]
[null,null,null,null,null,-1]
[null,null,null,null,null,-1]
[null,null,null,null,null,-1]
[null,null,null,null,null,-1]
[null,null,null,null,null,-1]
[null,null,null,null,null,-1]
[null,null,null,null,null,-1]
[null,null,null,null,null,-1]
[null,null,null,null,null,-1]
[null,null,null,null,null,{"$f":"IF(COUNT(A67:E67)>0,E67+D67*10+C67*100+B67*1000+A67*10000,-1)","v":-1}]
[null,null,null,null,null,-1]
[null,null,null,null,null,-1]
[null,null,null,null,null,-1]
[null,null,null,null,null,-1]
[null,null,null,null,null,-1]
[null,null,null,null,null,-1]
[null,null,null,null,null,-1]
[null,null,null,null,null,-1]
[null,null,null,null,null,-1]
[null,null,null,null,null,-1]
[null,null,null,null,null,-1]
[null,null,null,null,null,-1]
[null,null,null,null,null,-1]
[null,null,null,null,null,-1]
[null,null,null,null,null,-1]
[null,null,null,null,null,-1]
[null,null,null,null,null,-1]
[null,null,null,null,null,-1]
[null,null,null,null,null,-1]
[null,null,null,null,null,-1]
[null,null,null,null,null,-1]
[null,null,null,null,null,-1]
[null,null,null,null,null,-1]
[null,null,null,null,null,-1]
[null,null,null,null,null,-1]
[null,null,null,null,null,-1]
[null,null,null,null,null,-1]
[null,null,null,null,null,-1]
[null,null,null,null,null,-1]
[null,null,null,null,null,-1]
[null,null,null,null,null,-1]
[null,null,null,null,null,-1]
[null,null,null,null,null,-1]
[null,null,null,null,null,-1]
[null,null,null,null,null,-1]
[null,null,null,null,null,-1]
[null,null,null,null,null,-1]
[null,null,null,null,null,-1]
[null,null,null,null,null,-1]
[null,null,null,null,null,-1]
[null,null,null,null,null,-1]
[null,null,null,null,null,-1]
[null,null,null,null,null,-1]
[null,null,null,null,null,-1]
[null,null,null,null,null,-1]
[null,null,null,null,null,-1]
[null,null,null,null,null,-1]
[null,null,null,null,null,-1]
[null,null,null,null,null,-1]
[null,null,null,null,null,-1]
[null,null,null,null,null,-1]
[null,null,null,null,null,-1]
[null,null,null,null,null,-1]
[null,null,null,null,null,-1]
[null,null,null,null,null,-1]
[null,null,null,null,null,-1]
[null,null,null,null,null,-1]
[null,null,null,null,null,-1]
[null,null,null,null,null,-1]
[null,null,null,null,null,-1]
[null,null,null,null,null,-1]
[null,null,null,null,null,-1]
[null,null,null,null,null,-1]
[null,null,null,null,null,{"$f":"IF(COUNT(A131:E131)>0,E131+D131*10+C131*100+B131*1000+A131*10000,-1)","v":-1}]
[null,null,null,null,null,-1]
[null,null,null,null,null,-1]
[null,null,null,null,null,-1]
[null,null,null,null,null,-1]
[null,null,null,null,null,-1]
[null,null,null,null,null,-1]
[null,null,null,null,null,-1]
[null,null,null,null,null,-1]
[null,null,null,null,null,-1]
[null,null,null,null,null,-1]
[null,null,null,null,null,-1]
[null,null,null,null,null,-1]
[null,null,null,null,null,-1]
[null,null,null,null,null,-1]
[null,null,null,null,null,-1]
[null,null,null,null,null,-1]
[null,null,null,null,null,-1]
[null,null,null,null,null,-1]
[null,null,null,null,null,-1]
[null,null,null,null,null,-1]
[null,null,null,null,null,-1]
[null,null,null,null,null,-1]
[null,null,null,null,null,-1]
[null,null,null,null,null,-1]
[null,null,null,null,null,-1]
[null,null,null,null,null,-1]
[null,null,null,null,null,-1]
[null,null,null,null,null,-1]
[null,null,null,null,null,-1]
[null,null,null,null,null,-1]
[null,null,null,null,null,-1]
[null,null,null,null,null,-1]
[null,null,null,null,null,-1]
[null,null,null,null,null,-1]
[null,null,null,null,null,-1]
[null,null,null,null,null,-1]
[null,null,null,null,null,-1]
[null,null,null,null,null,-1]
[null,null,null,null,null,-1]
[null,null,null,null,null,-1]
[null,null,null,null,null,-1]
[null,null,null,null,null,-1]
[null,null,null,null,null,-1]
[null,null,null,null,null,-1]
[null,null,null,null,null,-1]
[null,null,null,null,null,-1]
[null,null,null,null,null,-1]
[null,null,null,null,null,-1]
[null,null,null,null,null,-1]
[null,null,null,null,null,-1]
[null,null,null,null,null,-1]
[null,null,null,null,null,-1]
[null,null,null,null,null,-1]
[null,null,null,null,null,-1]
[null,null,null,null,null,-1]
[null,null,null,null,null,-1]
[null,null,null,null,null,-1]
[null,null,null,null,null,-1]
[null,null,null,null,null,-1]
[null,null,null,null,null,-1]
[null,null,null,null,null,-1]
[null,null,null,null,null,-1]
[null,null,null,null,null,-1]
[null,null,null,null,null,{"$f":"IF(COUNT(A195:E195)>0,E195+D195*10+C195*100+B195*1000+A195*10000,-1)","v":-1}]
[null,null,null,null,null,-1]
[null,null,null,null,null,-1]
[null,null,null,null,null,-1]
[null,null,null,null,null,-1]
[null,null,null,null,null,-1]
[null,null,null,null,null,-1]
[null,null,null,null,null,-1]
[null,null,null,null,null,-1]
[null,null,null,null,null,-1]
[null,null,null,null,null,-1]
[null,null,null,null,null,-1]
[null,null,null,null,null,-1]
[null,null,null,null,null,-1]
[null,null,null,null,null,-1]
[null,null,null,null,null,-1]
[null,null,null,null,null,-1]
[null,null,null,null,null,-1]
[null,null,null,null,null,-1]
[null,null,null,null,null,-1]
[null,null,null,null,null,-1]
[null,null,null,null,null,-1]
[null,null,null,null,null,-1]
[null,null,null,null,null,-1]
[null,null,null,null,null,-1]
[null,null,null,null,null,-1]
[null,null,null,null,null,-1]
[null,null,null,null,null,-1]
[null,null,null,null,null,-1]
[null,null,null,null,null,-1]
[null,null,null,null,null,-1]
[null,null,null,null,null,-1]
[null,null,null,null,null,-1]
[null,null,null,null,null,-1]
[null,null,null,null,null,-1]
[null,null,null,null,null,-1]
[null,null,null,null,null,-1]
[null,null,null,null,null,-1]
[null,null,null,null,null,-1]
[null,null,null,null,null,-1]
[null,null,null,null,null,-1]
[null,null,null,null,null,-1]
[null,null,null,null,null,-1]
[null,null,null,null,null,-1]
[null,null,null,null,null,-1]
[null,null,null,null,null,-1]
[null,null,null,null,null,-1]
[null,null,null,null,null,-1]
[null,null,null,null,null,-1]
[null,null,null,null,null,-1]
[null,null,null,null,null,-1]
[null,null,null,null,null,-1]
[null,null,null,null,null,-1]
[null,null,null,null,null,-1]
[null,null,null,null,null,-1]
[null,null,null,null,null,-1]
[null,null,null,null,null,-1]
[null,null,null,null,null,-1]
[null,null,null,null,null,-1]
[null,null,null,null,null,-1]
[null,null,null,null,null,-1]
[null,null,null,null,null,-1]
[null,null,null,null,null,-1]
[null,null,null,null,null,-1]
[null,null,null,null,null,{"$f":"IF(COUNT(A259:E259)>0,E259+D259*10+C259*100+B259*1000+A259*10000,-1)","v":-1}]
[null,null,null,null,null,-1]
[null,null,null,null,null,-1]
[null,null,null,null,null,-1]
[null,null,null,null,null,-1]
[null,null,null,null,null,-1]
[null,null,null,null,null,-1]
[null,null,null,null,null,-1]
[null,null,null,null,null,-1]
[null,null,null,null,null,-1]
[null,null,null,null,null,-1]
[null,null,null,null,null,-1]
[null,null,null,null,null,-1]
[null,null,null,null,null,-1]
[null,null,null,null,null,-1]
[null,null,null,null,null,-1]
[null,null,null,null,null,-1]
[null,null,null,null,null,-1]
[null,null,null,null,null,-1]
[null,null,null,null,null,-1]
[null,null,null,null,null,-1]
[null,null,null,null,null,-1]
[null,null,null,null,null,-1]
[null,null,null,null,null,-1]
[null,null,null,null,null,-1]
[null,null,null,null,null,-1]
[null,null,null,null,null,-1]
[null,null,null,null,null,-1]
[null,null,null,null,null,-1]
[null,null,null,null,null,-1]
[null,null,null,null,null,-1]
[null,null,null,null,null,-1]
[null,null,null,null,null,-1]
[null,null,null,null,null,-1]
[null,null,null,null,null,-1]
[null,null,null,null,null,-1]
[null,null,null,null,null,-1]
[null,null,null,null,null,-1]
[null,null,null,null,null,-1]
[null,null,null,null,null,-1]
[null,null,null,null,null,-1]
[null,null,null,null,null,-1]
[null,null,null,null,null,-1]
[null,null,null,null,null,-1]
[null,null,null,null,null,-1]
[null,null,null,null,null,-1]
[null,null,null,null,null,-1]
[null,null,null,null,null,-1]
[null,null,null,null,null,-1]
[null,null,null,null,null,-1]
[null,null,null,null,null,-1]
[null,null,null,null,null,-1]
[null,null,null,null,null,-1]
[null,null,null,null,null,-1]
[null,null,null,null,null,-1]
[null,null,null,null,null,-1]
[null,null,null,null,null,-1]
[null,null,null,null,null,-1]
[null,null,null,null,null,-1]
[null,null,null,null,null,-1]
[null,null,null,null,null,-1]
[null,null,null,null,null,-1]
[null,null,null,null,null,-1]
[null,null,null,null,null,-1]
[null,null,null,null,null,{"$f":"IF(COUNT(A323:E323)>0,E323+D323*10+C323*100+B323*1000+A323*10000,-1)","v":-1}]
[null,null,null,null,null,-1]
[null,null,null,null,null,-1]
[null,null,null,null,null,-1]
[null,null,null,null,null,-1]
[null,null,null,null,null,-1]
[null,null,null,null,null,-1]
[null,null,null,null,null,-1]
[null,null,null,null,null,-1]
[null,null,null,null,null,-1]
[null,null,null,null,null,-1]
[null,null,null,null,null,-1]
[null,null,null,null,null,-1]
[null,null,null,null,null,-1]
[null,null,null,null,null,-1]
[null,null,null,null,null,-1]
[null,null,null,null,null,-1]
[null,null,null,null,null,-1]
[null,null,null,null,null,-1]
[null,null,null,null,null,-1]
[null,null,null,null,null,-1]
[null,null,null,null,null,-1]
[null,null,null,null,null,-1]
[null,null,null,null,null,-1]
[null,null,null,null,null,-1]
[null,null,null,null,null,-1]
[null,null,null,null,null,-1]
[null,null,null,null,null,-1]
[null,null,null,null,null,-1]
[null,null,null,null,null,-1]
[null,null,null,null,null,-1]
[null,null,null,null,null,-1]
[null,null,null,null,null,-1]
[null,null,null,null,null,-1]
[null,null,null,null,null,-1]
[null,null,null,null,null,-1]
[null,null,null,null,null,-1]
[null,null,null,null,null,-1]
[null,null,null,null,null,-1]
[null,null,null,null,null,-1]
[null,null,null,null,null,-1]
[null,null,null,null,null,-1]
[null,null,null,null,null,-1]
[null,null,null,null,null,-1]
[null,null,null,null,null,-1]
[null,null,null,null,null,-1]
[null,null,null,null,null,-1]
[null,null,null,null,null,-1]
[null,null,null,null,null,-1]
[null,null,null,null,null,-1]
[null,null,null,null,null,-1]
[null,null,null,null,null,-1]
[null,null,null,null,null,-1]
[null,null,null,null,null,-1]
[null,null,null,null,null,-1]
[null,null,null,null,null,-1]
[null,null,null,null,null,-1]
[null,null,null,null,null,-1]
[null,null,null,null,null,-1]
[null,null,null,null,null,-1]
[null,null,null,null,null,-1]
[null,null,null,null,null,-1]
[null,null,null,null,null,-1]
[null,null,null,null,null,-1]
[null,null,null,null,null,{"$f":"IF(COUNT(A387:E387)>0,E387+D387*10+C387*100+B387*1000+A387*10000,-1)","v":-1}]
[null,null,null,null,null,-1]
[null,null,null,null,null,-1]
[null,null,null,null,null,-1]
[null,null,null,null,null,-1]
[null,null,null,null,null,-1]
[null,null,null,null,null,-1]
[null,null,null,null,null,-1]
[null,null,null,null,null,-1]
[null,null,null,null,null,-1]
[null,null,null,null,null,-1]
[null,null,null,null,null,-1]
[null,null,null,null,null,-1]
[null,null,null,null,null,-1]
[null,null,null,null,null,-1]
[null,null,null,null,null,-1]
[null,null,null,null,null,-1]
[null,null,null,null,null,-1]
[null,null,null,null,null,-1]
[null,null,null,null,null,-1]
[null,null,null,null,null,-1]
[null,null,null,null,null,-1]
[null,null,null,null,null,-1]
[null,null,null,null,null,-1]
[null,null,null,null,null,-1]
[null,null,null,null,null,-1]
[null,null,null,null,null,-1]
[null,null,null,null,null,-1]
[null,null,null,null,null,-1]
[null,null,null,null,null,-1]
[null,null,null,null,null,-1]
[null,null,null,null,null,-1]
[null,null,null,null,null,-1]
[null,null,null,null,null,-1]
[null,null,null,null,null,-1]
[null,null,null,null,null,-1]
[null,null,null,null,null,-1]
[null,null,null,null,null,-1]
[null,null,null,null,null,-1]
[null,null,null,null,null,-1]
[null,null,null,null,null,-1]
[null,null,null,null,null,-1]
[null,null,null,null,null,-1]
[null,null,null,null,null,-1]
[null,null,null,null,null,-1]
[null,null,null,null,null,-1]
[null,null,null,null,null,-1]
[null,null,null,null,null,-1]
[null,null,null,null,null,-1]
[null,null,null,null,null,-1]
[null,null,null,null,null,-1]
[null,null,null,null,null,-1]
[null,null,null,null,null,-1]
[null,null,null,null,null,-1]
[null,null,null,null,null,-1]
[null,null,null,null,null,-1]
[null,null,null,null,null,-1]
[null,null,null,null,null,-1]
[null,null,null,null,null,-1]
[null,null,null,null,null,-1]
[null,null,null,null,null,-1]
[null,null,null,null,null,-1]
[null,null,null,null,null,-1]
[null,null,null,null,null,-1]
[null,null,null,null,null,{"$f":"IF(COUNT(A451:E451)>0,E451+D451*10+C451*100+B451*1000+A451*10000,-1)","v":-1}]
[null,null,null,null,null,-1]
[null,null,null,null,null,-1]
[null,null,null,null,null,-1]
[null,null,null,null,null,-1]
[null,null,null,null,null,-1]
[null,null,null,null,null,-1]
[null,null,null,null,null,-1]
[null,null,null,null,null,-1]
[null,null,null,null,null,-1]
[null,null,null,null,null,-1]
[null,null,null,null,null,-1]
[null,null,null,null,null,-1]
[null,null,null,null,null,-1]
[null,null,null,null,null,-1]
[null,null,null,null,null,-1]
[null,null,null,null,null,-1]
[null,null,null,null,null,-1]
[null,null,null,null,null,-1]
[null,null,null,null,null,-1]
[null,null,null,null,null,-1]
[null,null,null,null,null,-1]
[null,null,null,null,null,-1]
[null,null,null,null,null,-1]
[null,null,null,null,null,-1]
[null,null,null,null,null,-1]
[null,null,null,null,null,-1]
[null,null,null,null,null,-1]
[null,null,null,null,null,-1]
[null,null,null,null,null,-1]
[null,null,null,null,null,-1]
[null,null,null,null,null,-1]
[null,null,null,null,null,-1]
[null,null,null,null,null,-1]
[null,null,null,null,null,-1]
[null,null,null,null,null,-1]
[null,null,null,null,null,-1]
[null,null,null,null,null,-1]
[null,null,null,null,null,-1]
[null,null,null,null,null,-1]
[null,null,null,null,null,-1]
[null,null,null,null,null,-1]
[null,null,null,null,null,-1]
[null,null,null,null,null,-1]
[null,null,null,null,null,-1]
[null,null,null,null,null,-1]
[null,null,null,null,null,-1]
[null,null,null,null,null,-1]
[null,null,null,null,null,-1]
[null,null,null,null,null,-1]
[null,null,null,null,null,-1]
[null,null,null,null,null,-1]
[null,null,null,null,null,-1]
[null,null,null,null,null,-1]
[null,null,null,null,null,-1]
[null,null,null,null,null,-1]
[null,null,null,null,null,-1]
[null,null,null,null,null,-1]
[null,null,null,null,null,-1]
[null,null,null,null,null,-1]
[null,null,null,null,null,-1]
[null,null,null,null,null,-1]
[null,null,null,null,null,-1]
[null,null,null,null,null,-1]
[null,null,null,null,null,{"$f":"IF(COUNT(A515:E515)>0,E515+D515*10+C515*100+B515*1000+A515*10000,-1)","v":-1}]
[null,null,null,null,null,-1]
[null,null,null,null,null,-1]
[null,null,null,null,null,-1]
[null,null,null,null,null,-1]
[null,null,null,null,null,-1]
[null,null,null,null,null,-1]
[null,null,null,null,null,-1]
[null,null,null,null,null,-1]
[null,null,null,null,null,-1]
[null,null,null,null,null,-1]
[null,null,null,null,null,-1]
[null,null,null,null,null,-1]
[null,null,null,null,null,-1]
[null,null,null,null,null,-1]
[null,null,null,null,null,-1]
[null,null,null,null,null,-1]
[null,null,null,null,null,-1]
[null,null,null,null,null,-1]
[null,null,null,null,null,-1]
[null,null,null,null,null,-1]
[null,null,null,null,null,-1]
[null,null,null,null,null,-1]
[null,null,null,null,null,-1]
[null,null,null,null,null,-1]
[null,null,null,null,null,-1]
[null,null,null,null,null,-1]
[null,null,null,null,null,-1]
[null,null,null,null,null,-1]
[null,null,null,null,null,-1]
[null,null,null,null,null,-1]
[null,null,null,null,null,-1]
[null,null,null,null,null,-1]
[null,null,null,null,null,-1]
[null,null,null,null,null,-1]
[null,null,null,null,null,-1]
[null,null,null,null,null,-1]
[null,null,null,null,null,-1]
[null,null,null,null,null,-1]
[null,null,null,null,null,-1]
[null,null,null,null,null,-1]
[null,null,null,null,null,-1]
[null,null,null,null,null,-1]
[null,null,null,null,null,-1]
[null,null,null,null,null,-1]
[null,null,null,null,null,-1]
[null,null,null,null,null,-1]
[null,null,null,null,null,-1]
[null,null,null,null,null,-1]
[null,null,null,null,null,-1]
[null,null,null,null,null,-1]
[null,null,null,null,null,-1]
[null,null,null,null,null,-1]
[null,null,null,null,null,-1]
[null,null,null,null,null,-1]
[null,null,null,null,null,-1]
[null,null,null,null,null,-1]
[null,null,null,null,null,-1]
[null,null,null,null,null,-1]
[null,null,null,null,null,-1]
[null,null,null,null,null,-1]
[null,null,null,null,null,-1]
[null,null,null,null,null,-1]
[null,null,null,null,null,-1]
[null,null,null,null,null,{"$f":"IF(COUNT(A579:E579)>0,E579+D579*10+C579*100+B579*1000+A579*10000,-1)","v":-1}]
[null,null,null,null,null,-1]
[null,null,null,null,null,-1]
[null,null,null,null,null,-1]
[null,null,null,null,null,-1]
[null,null,null,null,null,-1]
[null,null,null,null,null,-1]
[null,null,null,null,null,-1]
[null,null,null,null,null,-1]
[null,null,null,null,null,-1]
[null,null,null,null,null,-1]
[null,null,null,null,null,-1]
[null,null,null,null,null,-1]
[null,null,null,null,null,-1]
[null,null,null,null,null,-1]
[null,null,null,null,null,-1]
[null,null,null,null,null,-1]
[null,null,null,null,null,-1]
[null,null,null,null,null,-1]
[null,null,null,null,null,-1]
[null,null,null,null,null,-1]
[null,null,null,null,null,-1]
[null,null,null,null,null,-1]
[null,null,null,null,null,-1]
[null,null,null,null,null,-1]
[null,null,null,null,null,-1]
[null,null,null,null,null,-1]
[null,null,null,null,null,-1]
[null,null,null,null,null,-1]
[null,null,null,null,null,-1]
[null,null,null,null,null,-1]
[null,null,null,null,null,-1]
[null,null,null,null,null,-1]
[null,null,null,null,null,-1]
[null,null,null,null,null,-1]
[null,null,null,null,null,-1]
[null,null,null,null,null,-1]
[null,null,null,null,null,-1]
[null,null,null,null,null,-1]
[null,null,null,null,null,-1]
[null,null,null,null,null,-1]
[null,null,null,null,null,-1]
[null,null,null,null,null,-1]
[null,null,null,null,null,-1]
[null,null,null,null,null,-1]
[null,null,null,null,null,-1]
[null,null,null,null,null,-1]
[null,null,null,null,null,-1]
[null,null,null,null,null,-1]
[null,null,null,null,null,-1]
[null,null,null,null,null,-1]
[null,null,null,null,null,-1]
[null,null,null,null,null,-1]
[null,null,null,null,null,-1]
[null,null,null,null,null,-1]
[null,null,null,null,null,-1]
[null,null,null,null,null,-1]
[null,null,null,null,null,-1]
[null,null,null,null,null,-1]
[null,null,null,null,null,-1]
[null,null,null,null,null,-1]
[null,null,null,null,null,-1]
[null,null,null,null,null,-1]
[null,null,null,null,null,-1]
[null,null,null,null,null,{"$f":"IF(COUNT(A643:E643)>0,E643+D643*10+C643*100+B643*1000+A643*10000,-1)","v":-1}]
[null,null,null,null,null,-1]
[null,null,null,null,null,-1]
[null,null,null,null,null,-1]
[null,null,null,null,null,-1]
[null,null,null,null,null,-1]
[null,null,null,null,null,-1]
[null,null,null,null,null,-1]
[null,null,null,null,null,-1]
[null,null,null,null,null,-1]
[null,null,null,null,null,-1]
[null,null,null,null,null,-1]
[null,null,null,null,null,-1]
[null,null,null,null,null,-1]
[null,null,null,null,null,-1]
[null,null,null,null,null,-1]
[null,null,null,null,null,-1]
[null,null,null,null,null,-1]
[null,null,null,null,null,-1]
[null,null,null,null,null,-1]
[null,null,null,null,null,-1]
[null,null,null,null,null,-1]
[null,null,null,null,null,-1]
[null,null,null,null,null,-1]
[null,null,null,null,null,-1]
[null,null,null,null,null,-1]
[null,null,null,null,null,-1]
[null,null,null,null,null,-1]
[null,null,null,null,null,-1]
[null,null,null,null,null,-1]
[null,null,null,null,null,-1]
[null,null,null,null,null,-1]
[null,null,null,null,null,-1]
[null,null,null,null,null,-1]
[null,null,null,null,null,-1]
[null,null,null,null,null,-1]
[null,null,null,null,null,-1]
[null,null,null,null,null,-1]
[null,null,null,null,null,-1]
[null,null,null,null,null,-1]
[null,null,null,null,null,-1]
[null,null,null,null,null,-1]
[null,null,null,null,null,-1]
[null,null,null,null,null,-1]
[null,null,null,null,null,-1]
[null,null,null,null,null,-1]
[null,null,null,null,null,-1]
[null,null,null,null,null,-1]
[null,null,null,null,null,-1]
[null,null,null,null,null,-1]
[null,null,null,null,null,-1]
[null,null,null,null,null,-1]
[null,null,null,null,null,-1]
[null,null,null,null,null,-1]
[null,null,null,null,null,-1]
[null,null,null,null,null,-1]
[null,null,null,null,null,-1]
[null,null,null,null,null,-1]
[null,null,null,null,null,-1]
[null,null,null,null,null,-1]
[null,null,null,null,null,-1]
[null,null,null,null,null,-1]
[null,null,null,null,null,-1]
[null,null,null,null,null,-1]
[null,null,null,null,null,{"$f":"IF(COUNT(A707:E707)>0,E707+D707*10+C707*100+B707*1000+A707*10000,-1)","v":-1}]
[null,null,null,null,null,-1]
[null,null,null,null,null,-1]
[null,null,null,null,null,-1]
[null,null,null,null,null,-1]
[null,null,null,null,null,-1]
[null,null,null,null,null,-1]
[null,null,null,null,null,-1]
[null,null,null,null,null,-1]
[null,null,null,null,null,-1]
[null,null,null,null,null,-1]
[null,null,null,null,null,-1]
[null,null,null,null,null,-1]
[null,null,null,null,null,-1]
[null,null,null,null,null,-1]
[null,null,null,null,null,-1]
[null,null,null,null,null,-1]
[null,null,null,null,null,-1]
[null,null,null,null,null,-1]
[null,null,null,null,null,-1]
[null,null,null,null,null,-1]
[null,null,null,null,null,-1]
[null,null,null,null,null,-1]
[null,null,null,null,null,-1]
[null,null,null,null,null,-1]
[null,null,null,null,null,-1]
[null,null,null,null,null,-1]
[null,null,null,null,null,-1]
[null,null,null,null,null,-1]
[null,null,null,null,null,-1]
[null,null,null,null,null,-1]
[null,null,null,null,null,-1]
[null,null,null,null,null,-1]
[null,null,null,null,null,-1]
[null,null,null,null,null,-1]
[null,null,null,null,null,-1]
[null,null,null,null,null,-1]
[null,null,null,null,null,-1]
[null,null,null,null,null,-1]
[null,null,null,null,null,-1]
[null,null,null,null,null,-1]
[null,null,null,null,null,-1]
[null,null,null,null,null,-1]
[null,null,null,null,null,-1]
[null,null,null,null,null,-1]
[null,null,null,null,null,-1]
[null,null,null,null,null,-1]
[null,null,null,null,null,-1]
[null,null,null,null,null,-1]
[null,null,null,null,null,-1]
[null,null,null,null,null,-1]
[null,null,null,null,null,-1]
[null,null,null,null,null,-1]
[null,null,null,null,null,-1]
[null,null,null,null,null,-1]
[null,null,null,null,null,-1]
[null,null,null,null,null,-1]
[null,null,null,null,null,-1]
[null,null,null,null,null,-1]
[null,null,null,null,null,-1]
[null,null,null,null,null,-1]
[null,null,null,null,null,-1]
[null,null,null,null,null,-1]
[null,null,null,null,null,-1]
[null,null,null,null,null,{"$f":"IF(COUNT(A771:E771)>0,E771+D771*10+C771*100+B771*1000+A771*10000,-1)","v":-1}]
[null,null,null,null,null,-1]
[null,null,null,null,null,-1]
[null,null,null,null,null,-1]
[null,null,null,null,null,-1]
[null,null,null,null,null,-1]
[null,null,null,null,null,-1]
[null,null,null,null,null,-1]
[null,null,null,null,null,-1]
[null,null,null,null,null,-1]
[null,null,null,null,null,-1]
[null,null,null,null,null,-1]
[null,null,null,null,null,-1]
[null,null,null,null,null,-1]
[null,null,null,null,null,-1]
[null,null,null,null,null,-1]
[null,null,null,null,null,-1]
[null,null,null,null,null,-1]
[null,null,null,null,null,-1]
[null,null,null,null,null,-1]
[null,null,null,null,null,-1]
[null,null,null,null,null,-1]
[null,null,null,null,null,-1]
[null,null,null,null,null,-1]
[null,null,null,null,null,-1]
[null,null,null,null,null,-1]
[null,null,null,null,null,-1]
[null,null,null,null,null,-1]
[null,null,null,null,null,-1]
[null,null,null,null,null,-1]
[null,null,null,null,null,-1]
[null,null,null,null,null,-1]
[null,null,null,null,null,-1]
[null,null,null,null,null,-1]
[null,null,null,null,null,-1]
[null,null,null,null,null,-1]
[null,null,null,null,null,-1]
[null,null,null,null,null,-1]
[null,null,null,null,null,-1]
[null,null,null,null,null,-1]
[null,null,null,null,null,-1]
[null,null,null,null,null,-1]
[null,null,null,null,null,-1]
[null,null,null,null,null,-1]
[null,null,null,null,null,-1]
[null,null,null,null,null,-1]
[null,null,null,null,null,-1]
[null,null,null,null,null,-1]
[null,null,null,null,null,-1]
[null,null,null,null,null,-1]
[null,null,null,null,null,-1]
[null,null,null,null,null,-1]
[null,null,null,null,null,-1]
[null,null,null,null,null,-1]
[null,null,null,null,null,-1]
[null,null,null,null,null,-1]
[null,null,null,null,null,-1]
[null,null,null,null,null,-1]
[null,null,null,null,null,-1]
[null,null,null,null,null,-1]
[null,null,null,null,null,-1]
[null,null,null,null,null,-1]
[null,null,null,null,null,-1]
[null,null,null,null,null,-1]
[null,null,null,null,null,{"$f":"IF(COUNT(A835:E835)>0,E835+D835*10+C835*100+B835*1000+A835*10000,-1)","v":-1}]
[null,null,null,null,null,-1]
[null,null,null,null,null,-1]
[null,null,null,null,null,-1]
[null,null,null,null,null,-1]
[null,null,null,null,null,-1]
[null,null,null,null,null,-1]
[null,null,null,null,null,-1]
[null,null,null,null,null,-1]
[null,null,null,null,null,-1]
[null,null,null,null,null,-1]
[null,null,null,null,null,-1]
[null,null,null,null,null,-1]
[null,null,null,null,null,-1]
[null,null,null,null,null,-1]
[null,null,null,null,null,-1]
[null,null,null,null,null,-1]
[null,null,null,null,null,-1]
[null,null,null,null,null,-1]
[null,null,null,null,null,-1]
[null,null,null,null,null,-1]
[null,null,null,null,null,-1]
[null,null,null,null,null,-1]
[null,null,null,null,null,-1]
[null,null,null,null,null,-1]
[null,null,null,null,null,-1]
[null,null,null,null,null,-1]
[null,null,null,null,null,-1]
[null,null,null,null,null,-1]
[null,null,null,null,null,-1]
[null,null,null,null,null,-1]
[null,null,null,null,null,-1]
[null,null,null,null,null,-1]
[null,null,null,null,null,-1]
[null,null,null,null,null,-1]
[null,null,null,null,null,-1]
[null,null,null,null,null,-1]
[null,null,null,null,null,-1]
[null,null,null,null,null,-1]
[null,null,null,null,null,-1]
[null,null,null,null,null,-1]
[null,null,null,null,null,-1]
[null,null,null,null,null,-1]
[null,null,null,null,null,-1]
[null,null,null,null,null,-1]
[null,null,null,null,null,-1]
[null,null,null,null,null,-1]
[null,null,null,null,null,-1]
[null,null,null,null,null,-1]
[null,null,null,null,null,-1]
[null,null,null,null,null,-1]
[null,null,null,null,null,-1]
[null,null,null,null,null,-1]
[null,null,null,null,null,-1]
[null,null,null,null,null,-1]
[null,null,null,null,null,-1]
[null,null,null,null,null,-1]
[null,null,null,null,null,-1]
[null,null,null,null,null,-1]
[null,null,null,null,null,-1]
[null,null,null,null,null,-1]
[null,null,null,null,null,-1]
[null,null,null,null,null,-1]
[null,null,null,null,null,-1]
[null,null,null,null,null,{"$f":"IF(COUNT(A899:E899)>0,E899+D899*10+C899*100+B899*1000+A899*10000,-1)","v":-1}]
[null,null,null,null,null,-1]
[null,null,null,null,null,-1]
[null,null,null,null,null,-1]
[null,null,null,null,null,-1]
[null,null,null,null,null,-1]
[null,null,null,null,null,-1]
[null,null,null,null,null,-1]
[null,null,null,null,null,-1]
[null,null,null,null,null,-1]
[null,null,null,null,null,-1]
[null,null,null,null,null,-1]
[null,null,null,null,null,-1]
[null,null,null,null,null,-1]
[null,null,null,null,null,-1]
[null,null,null,null,null,-1]
[null,null,null,null,null,-1]
[null,null,null,null,null,-1]
[null,null,null,null,null,-1]
[null,null,null,null,null,-1]
[null,null,null,null,null,-1]
[null,null,null,null,null,-1]
[null,null,null,null,null,-1]
[null,null,null,null,null,-1]
[null,null,null,null,null,-1]
[null,null,null,null,null,-1]
[null,null,null,null,null,-1]
[null,null,null,null,null,-1]
[null,null,null,null,null,-1]
[null,null,null,null,null,-1]
[null,null,null,null,null,-1]
[null,null,null,null,null,-1]
[null,null,null,null,null,-1]
[null,null,null,null,null,-1]
[null,null,null,null,null,-1]
[null,null,null,null,null,-1]
[null,null,null,null,null,-1]
[null,null,null,null,null,-1]
[null,null,null,null,null,-1]
[null,null,null,null,null,-1]
[null,null,null,null,null,-1]
[null,null,null,null,null,-1]
[null,null,null,null,null,-1]
[null,null,null,null,null,-1]
[null,null,null,null,null,-1]
[null,null,null,null,null,-1]
[null,null,null,null,null,-1]
[null,null,null,null,null,-1]
[null,null,null,null,null,-1]
[null,null,null,null,null,-1]
[null,null,null,null,null,-1]
[null,null,null,null,null,-1]
[null,null,null,null,null,-1]
[null,null,null,null,null,-1]
[null,null,null,null,null,-1]
[null,null,null,null,null,-1]
[null,null,null,null,null,-1]
[null,null,null,null,null,-1]
[null,null,null,null,null,-1]
[null,null,null,null,null,-1]
[null,null,null,null,null,-1]
[null,null,null,null,null,-1]
[null,null,null,null,null,-1]
[null,null,null,null,null,-1]
[null,null,null,null,null,{"$f":"IF(COUNT(A963:E963)>0,E963+D963*10+C963*100+B963*1000+A963*10000,-1)","v":-1}]
[null,null,null,null,null,-1]
[null,null,null,null,null,-1]
[null,null,null,null,null,-1]
[null,null,null,null,null,-1]
[null,null,null,null,null,-1]
[null,null,null,null,null,-1]
[null,null,null,null,null,-1]
[null,null,null,null,null,-1]
[null,null,null,null,null,-1]
[null,null,null,null,null,-1]
[null,null,null,null,null,-1]
[null,null,null,null,null,-1]
[null,null,null,null,null,-1]
[null,null,null,null,null,-1]
[null,null,null,null,null,-1]
[null,null,null,null,null,-1]
[null,null,null,null,null,-1]
[null,null,null,null,null,-1]
[null,null,null,null,null,-1]
[null,null,null,null,null,-1]
[null,null,null,null,null,-1]
[null,null,null,null,null,-1]
[null,null,null,null,null,-1]
[null,null,null,null,null,-1]
[null,null,null,null,null,-1]
[null,null,null,null,null,-1]
[null,null,null,null,null,-1]
[null,null,null,null,null,-1]
[null,null,null,null,null,-1]
[null,null,null,null,null,-1]
[null,null,null,null,null,-1]
[null,null,null,null,null,-1]
[null,null,null,null,null,-1]
[null,null,null,null,null,-1]
[null,null,null,null,null,-1]
[null,null,null,null,null,-1]
[null,null,null,null,null,-1]
[null,null,null,null,null,-1]
[null,null,null,null,null,-1]
[null,null,null,null,null,-1]
[null,null,null,null,null,-1]
[null,null,null,null,null,-1]
[null,null,null,null,null,-1]
[null,null,null,null,null,-1]
[null,null,null,null,null,-1]
[null,null,null,null,null,-1]
[null,null,null,null,null,-1]
[null,null,null,null,null,-1]
[null,null,null,null,null,-1]
[null,null,null,null,null,-1]
[null,null,null,null,null,-1]
[null,null,null,null,null,-1]
[null,null,null,null,null,-1]
[null,null,null,null,null,-1]
[null,null,null,null,null,-1]
[null,null,null,null,null,-1]
[null,null,null,null,null,-1]
[null,null,null,null,null,-1]
[null,null,null,null,null,-1]
[null,null,null,null,null,-1]
[null,null,null,null,null,-1]
[null,null,null,null,null,-1]
[null,null,null,null,null,-1]
[null,null,null,null,null,{"$f":"IF(COUNT(A1027:E1027)>0,E1027+D1027*10+C1027*100+B1027*1000+A1027*10000,-1)","v":-1}]
[null,null,null,null,null,-1]
[null,null,null,null,null,-1]
[null,null,null,null,null,-1]
[null,null,null,null,null,-1]
[null,null,null,null,null,-1]
[null,null,null,null,null,-1]
[null,null,null,null,null,-1]
[null,null,null,null,null,-1]
[null,null,null,null,null,-1]
[null,null,null,null,null,-1]
[null,null,null,null,null,-1]
[null,null,null,null,null,-1]
[null,null,null,null,null,-1]
[null,null,null,null,null,-1]
[null,null,null,null,null,-1]
[null,null,null,null,null,-1]
[null,null,null,null,null,-1]
[null,null,null,null,null,-1]
[null,null,null,null,null,-1]
[null,null,null,null,null,-1]
[null,null,null,null,null,-1]
[null,null,null,null,null,-1]
[null,null,null,null,null,-1]
[null,null,null,null,null,-1]
[null,null,null,null,null,-1]
[null,null,null,null,null,-1]
[null,null,null,null,null,-1]
[null,null,null,null,null,-1]
[null,null,null,null,null,-1]
[null,null,null,null,null,-1]
[null,null,null,null,null,-1]
[null,null,null,null,null,-1]
[null,null,null,null,null,-1]
[null,null,null,null,null,-1]
[null,null,null,null,null,-1]
[null,null,null,null,null,-1]
[null,null,null,null,null,-1]
[null,null,null,null,null,-1]
[null,null,null,null,null,-1]
[null,null,null,null,null,-1]
[null,null,null,null,null,-1]
[null,null,null,null,null,-1]
[null,null,null,null,null,-1]
[null,null,null,null,null,-1]
[null,null,null,null,null,-1]
[null,null,null,null,null,-1]
[null,null,null,null,null,-1]
[null,null,null,null,null,-1]
[null,null,null,null,null,-1]
[null,null,null,null,null,-1]
[null,null,null,null,null,-1]
[null,null,null,null,null,-1]
[null,null,null,null,null,-1]
[null,null,null,null,null,-1]
[null,null,null,null,null,-1]
[null,null,null,null,null,-1]
[null,null,null,null,null,-1]
[null,null,null,null,null,-1]
[null,null,null,null,null,-1]
[null,null,null,null,null,-1]
[null,null,null,null,null,-1]
[null,null,null,null,null,-1]
[null,null,null,null,null,-1]
[null,null,null,null,null,{"$f":"IF(COUNT(A1091:E1091)>0,E1091+D1091*10+C1091*100+B1091*1000+A1091*10000,-1)","v":-1}]
[null,null,null,null,null,-1]
[null,null,null,null,null,-1]
[null,null,null,null,null,-1]
[null,null,null,null,null,-1]
[null,null,null,null,null,-1]
[null,null,null,null,null,-1]
[null,null,null,null,null,-1]
[null,null,null,null,null,-1]
[null,null,null,null,null,-1]
[null,null,null,null,null,-1]
[null,null,null,null,null,-1]
[null,null,null,null,null,-1]
[null,null,null,null,null,-1]
[null,null,null,null,null,-1]
[null,null,null,null,null,-1]
[null,null,null,null,null,-1]
[null,null,null,null,null,-1]
[null,null,null,null,null,-1]
[null,null,null,null,null,-1]
[null,null,null,null,null,-1]
[null,null,null,null,null,-1]
[null,null,null,null,null,-1]
[null,null,null,null,null,-1]
[null,null,null,null,null,-1]
[null,null,null,null,null,-1]
[null,null,null,null,null,-1]
[null,null,null,null,null,-1]
[null,null,null,null,null,-1]
[null,null,null,null,null,-1]
[null,null,null,null,null,-1]
[null,null,null,null,null,-1]
[null,null,null,null,null,-1]
[null,null,null,null,null,-1]
[null,null,null,null,null,-1]
[null,null,null,null,null,-1]
[null,null,null,null,null,-1]
[null,null,null,null,null,-1]
[null,null,null,null,null,-1]
[null,null,null,null,null,-1]
[null,null,null,null,null,-1]
[null,null,null,null,null,-1]
[null,null,null,null,null,-1]
[null,null,null,null,null,-1]
[null,null,null,null,null,-1]
[null,null,null,null,null,-1]
[null,null,null,null,null,-1]
[null,null,null,null,null,-1]
[null,null,null,null,null,-1]
[null,null,null,null,null,-1]
[null,null,null,null,null,-1]
[null,null,null,null,null,-1]
[null,null,null,null,null,-1]
[null,null,null,null,null,-1]
[null,null,null,null,null,-1]
[null,null,null,null,null,-1]
[null,null,null,null,null,-1]
[null,null,null,null,null,-1]
[null,null,null,null,null,-1]
[null,null,null,null,null,-1]
[null,null,null,null,null,-1]
[null,null,null,null,null,-1]
[null,null,null,null,null,-1]
[null,null,null,null,null,-1]
[null,null,null,null,null,{"$f":"IF(COUNT(A1155:E1155)>0,E1155+D1155*10+C1155*100+B1155*1000+A1155*10000,-1)","v":-1}]
[null,null,null,null,null,-1]
[null,null,null,null,null,-1]
[null,null,null,null,null,-1]
[null,null,null,null,null,-1]
[null,null,null,null,null,-1]
[null,null,null,null,null,-1]
[null,null,null,null,null,-1]
[null,null,null,null,null,-1]
[null,null,null,null,null,-1]
[null,null,null,null,null,-1]
[null,null,null,null,null,-1]
[null,null,null,null,null,-1]
[null,null,null,null,null,-1]
[null,null,null,null,null,-1]
[null,null,null,null,null,-1]
[null,null,null,null,null,-1]
[null,null,null,null,null,-1]
[null,null,null,null,null,-1]
[null,null,null,null,null,-1]
[null,null,null,null,null,-1]
[null,null,null,null,null,-1]
[null,null,null,null,null,-1]
[null,null,null,null,null,-1]
[null,null,null,null,null,-1]
[null,null,null,null,null,-1]
[null,null,null,null,null,-1]
[null,null,null,null,null,-1]
[null,null,null,null,null,-1]
[null,null,null,null,null,-1]
[null,null,null,null,null,-1]
[null,null,null,null,null,-1]
[null,null,null,null,null,-1]
[null,null,null,null,null,-1]
[null,null,null,null,null,-1]
[null,null,null,null,null,-1]
[null,null,null,null,null,-1]
[null,null,null,null,null,-1]
[null,null,null,null,null,-1]
[null,null,null,null,null,-1]
[null,null,null,null,null,-1]
[null,null,null,null,null,-1]
[null,null,null,null,null,-1]
[null,null,null,null,null,-1]
[null,null,null,null,null,-1]
[null,null,null,null,null,-1]
[null,null,null,null,null,-1]
[null,null,null,null,null,-1]
[null,null,null,null,null,-1]
[null,null,null,null,null,-1]
[null,null,null,null,null,-1]
[null,null,null,null,null,-1]
[null,null,null,null,null,-1]
[null,null,null,null,null,-1]
[null,null,null,null,null,-1]
[null,null,null,null,null,-1]
[null,null,null,null,null,-1]
[null,null,null,null,null,-1]
[null,null,null,null,null,-1]
[null,null,null,null,null,-1]
[null,null,null,null,null,-1]
[null,null,null,null,null,-1]
[null,null,null,null,null,-1]
[null,null,null,null,null,-1]
[null,null,null,null,null,{"$f":"IF(COUNT(A1219:E1219)>0,E1219+D1219*10+C1219*100+B1219*1000+A1219*10000,-1)","v":-1}]
[null,null,null,null,null,-1]
[null,null,null,null,null,-1]
[null,null,null,null,null,-1]
[null,null,null,null,null,-1]
[null,null,null,null,null,-1]
[null,null,null,null,null,-1]
[null,null,null,null,null,-1]
[null,null,null,null,null,-1]
[null,null,null,null,null,-1]
[null,null,null,null,null,-1]
[null,null,null,null,null,-1]
[null,null,null,null,null,-1]
[null,null,null,null,null,-1]
[null,null,null,null,null,-1]
[null,null,null,null,null,-1]
[null,null,null,null,null,-1]
[null,null,null,null,null,-1]
[null,null,null,null,null,-1]
[null,null,null,null,null,-1]
[null,null,null,null,null,-1]
[null,null,null,null,null,-1]
[null,null,null,null,null,-1]
[null,null,null,null,null,-1]
[null,null,null,null,null,-1]
[null,null,null,null,null,-1]
[null,null,null,null,null,-1]
[null,null,null,null,null,-1]
[null,null,null,null,null,-1]
[null,null,null,null,null,-1]
[null,null,null,null,null,-1]
[null,null,null,null,null,-1]
[null,null,null,null,null,-1]
[null,null,null,null,null,-1]
[null,null,null,null,null,-1]
[null,null,null,null,null,-1]
[null,null,null,null,null,-1]
[null,null,null,null,null,-1]
[null,null,null,null,null,-1]
[null,null,null,null,null,-1]
[null,null,null,null,null,-1]
[null,null,null,null,null,-1]
[null,null,null,null,null,-1]
[null,null,null,null,null,-1]
[null,null,null,null,null,-1]
[null,null,null,null,null,-1]
[null,null,null,null,null,-1]
[null,null,null,null,null,-1]
[null,null,null,null,null,-1]
[null,null,null,null,null,-1]
[null,null,null,null,null,-1]
[null,null,null,null,null,-1]
[null,null,null,null,null,-1]
[null,null,null,null,null,-1]
[null,null,null,null,null,-1]
[null,null,null,null,null,-1]
[null,null,null,null,null,-1]
[null,null,null,null,null,-1]
[null,null,null,null,null,-1]
[null,null,null,null,null,-1]
[null,null,null,null,null,-1]
[null,null,null,null,null,-1]
[null,null,null,null,null,-1]
[null,null,null,null,null,-1]
[null,null,null,null,null,{"$f":"IF(COUNT(A1283:E1283)>0,E1283+D1283*10+C1283*100+B1283*1000+A1283*10000,-1)","v":-1}]
[null,null,null,null,null,-1]
[null,null,null,null,null,-1]
[null,null,null,null,null,-1]
[null,null,null,null,null,-1]
[null,null,null,null,null,-1]
[null,null,null,null,null,-1]
[null,null,null,null,null,-1]
[null,null,null,null,null,-1]
[null,null,null,null,null,-1]
[null,null,null,null,null,-1]
[null,null,null,null,null,-1]
[null,null,null,null,null,-1]
[null,null,null,null,null,-1]
[null,null,null,null,null,-1]
[null,null,null,null,null,-1]
[null,null,null,null,null,-1]
[null,null,null,null,null,-1]
[null,null,null,null,null,-1]
[null,null,null,null,null,-1]
[null,null,null,null,null,-1]
[null,null,null,null,null,-1]
[null,null,null,null,null,-1]
[null,null,null,null,null,-1]
[null,null,null,null,null,-1]
[null,null,null,null,null,-1]
[null,null,null,null,null,-1]
[null,null,null,null,null,-1]
[null,null,null,null,null,-1]
[null,null,null,null,null,-1]
[null,null,null,null,null,-1]
[null,null,null,null,null,-1]
[null,null,null,null,null,-1]
[null,null,null,null,null,-1]
[null,null,null,null,null,-1]
[null,null,null,null,null,-1]
[null,null,null,null,null,-1]
[null,null,null,null,null,-1]
[null,null,null,null,null,-1]
[null,null,null,null,null,-1]
[null,null,null,null,null,-1]
[null,null,null,null,null,-1]
[null,null,null,null,null,-1]
[null,null,null,null,null,-1]
[null,null,null,null,null,-1]
[null,null,null,null,null,-1]
[null,null,null,null,null,-1]
[null,null,null,null,null,-1]
[null,null,null,null,null,-1]
[null,null,null,null,null,-1]
[null,null,null,null,null,-1]
[null,null,null,null,null,-1]
[null,null,null,null,null,-1]
[null,null,null,null,null,-1]
[null,null,null,null,null,-1]
[null,null,null,null,null,-1]
[null,null,null,null,null,-1]
[null,null,null,null,null,-1]
[null,null,null,null,null,-1]
[null,null,null,null,null,-1]
[null,null,null,null,null,-1]
[null,null,null,null,null,-1]
[null,null,null,null,null,-1]
[null,null,null,null,null,-1]
[null,null,null,null,null,{"$f":"IF(COUNT(A1347:E1347)>0,E1347+D1347*10+C1347*100+B1347*1000+A1347*10000,-1)","v":-1}]
[null,null,null,null,null,-1]
[null,null,null,null,null,-1]
[null,null,null,null,null,-1]
[null,null,null,null,null,-1]
[null,null,null,null,null,-1]
[null,null,null,null,null,-1]
[null,null,null,null,null,-1]
[null,null,null,null,null,-1]
[null,null,null,null,null,-1]
[null,null,null,null,null,-1]
[null,null,null,null,null,-1]
[null,null,null,null,null,-1]
[null,null,null,null,null,-1]
[null,null,null,null,null,-1]
[null,null,null,null,null,-1]
[null,null,null,null,null,-1]
[null,null,null,null,null,-1]
[null,null,null,null,null,-1]
[null,null,null,null,null,-1]
[null,null,null,null,null,-1]
[null,null,null,null,null,-1]
[null,null,null,null,null,-1]
[null,null,null,null,null,-1]
[null,null,null,null,null,-1]
[null,null,null,null,null,-1]
[null,null,null,null,null,-1]
[null,null,null,null,null,-1]
[null,null,null,null,null,-1]
[null,null,null,null,null,-1]
[null,null,null,null,null,-1]
[null,null,null,null,null,-1]
[null,null,null,null,null,-1]
[null,null,null,null,null,-1]
[null,null,null,null,null,-1]
[null,null,null,null,null,-1]
[null,null,null,null,null,-1]
[null,null,null,null,null,-1]
[null,null,null,null,null,-1]
[null,null,null,null,null,-1]
[null,null,null,null,null,-1]
[null,null,null,null,null,-1]
[null,null,null,null,null,-1]
[null,null,null,null,null,-1]
[null,null,null,null,null,-1]
[null,null,null,null,null,-1]
[null,null,null,null,null,-1]
[null,null,null,null,null,-1]
[null,null,null,null,null,-1]
[null,null,null,null,null,-1]
[null,null,null,null,null,-1]
[null,null,null,null,null,-1]
[null,null,null,null,null,-1]
[null,null,null,null,null,-1]
[null,null,null,null,null,-1]
[null,null,null,null,null,-1]
[null,null,null,null,null,-1]
[null,null,null,null,null,-1]
[null,null,null,null,null,-1]
[null,null,null,null,null,-1]
[null,null,null,null,null,-1]
[null,null,null,null,null,-1]
[null,null,null,null,null,-1]
[null,null,null,null,null,-1]
[null,null,null,null,null,{"$f":"IF(COUNT(A1411:E1411)>0,E1411+D1411*10+C1411*100+B1411*1000+A1411*10000,-1)","v":-1}]
[null,null,null,null,null,-1]
[null,null,null,null,null,-1]
[null,null,null,null,null,-1]
[null,null,null,null,null,-1]
[null,null,null,null,null,-1]
[null,null,null,null,null,-1]
[null,null,null,null,null,-1]
[null,null,null,null,null,-1]
[null,null,null,null,null,-1]
[null,null,null,null,null,-1]
[null,null,null,null,null,-1]
[null,null,null,null,null,-1]
[null,null,null,null,null,-1]
[null,null,null,null,null,-1]
[null,null,null,null,null,-1]
[null,null,null,null,null,-1]
[null,null,null,null,null,-1]
[null,null,null,null,null,-1]
[null,null,null,null,null,-1]
[null,null,null,null,null,-1]
[null,null,null,null,null,-1]
[null,null,null,null,null,-1]
[null,null,null,null,null,-1]
[null,null,null,null,null,-1]
[null,null,null,null,null,-1]
[null,null,null,null,null,-1]
[null,null,null,null,null,-1]
[null,null,null,null,null,-1]
[null,null,null,null,null,-1]
[null,null,null,null,null,-1]
[null,null,null,null,null,-1]
[null,null,null,null,null,-1]
[null,null,null,null,null,-1]
[null,null,null,null,null,-1]
[null,null,null,null,null,-1]
[null,null,null,null,null,-1]
[null,null,null,null,null,-1]
[null,null,null,null,null,-1]
[null,null,null,null,null,-1]
[null,null,null,null,null,-1]
[null,null,null,null,null,-1]
[null,null,null,null,null,-1]
[null,null,null,null,null,-1]
[null,null,null,null,null,-1]
[null,null,null,null,null,-1]
[null,null,null,null,null,-1]
[null,null,null,null,null,-1]
[null,null,null,null,null,-1]
[null,null,null,null,null,-1]
[null,null,null,null,null,-1]
[null,null,null,null,null,-1]
[null,null,null,null,null,-1]
[null,null,null,null,null,-1]
[null,null,null,null,null,-1]
[null,null,null,null,null,-1]
[null,null,null,null,null,-1]
[null,null,null,null,null,-1]
[null,null,null,null,null,-1]
[null,null,null,null,null,-1]
[null,null,null,null,null,-1]
[null,null,null,null,null,-1]
[null,null,null,null,null,-1]
[null,null,null,null,null,-1]
[null,null,null,null,null,{"$f":"IF(COUNT(A1475:E1475)>0,E1475+D1475*10+C1475*100+B1475*1000+A1475*10000,-1)","v":-1}]
[null,null,null,null,null,-1]
[null,null,null,null,null,-1]
[null,null,null,null,null,-1]
[null,null,null,null,null,-1]
[null,null,null,null,null,-1]
[null,null,null,null,null,-1]
[null,null,null,null,null,-1]
[null,null,null,null,null,-1]
[null,null,null,null,null,-1]
[null,null,null,null,null,-1]
[null,null,null,null,null,-1]
[null,null,null,null,null,-1]
[null,null,null,null,null,-1]
[null,null,null,null,null,-1]
[null,null,null,null,null,-1]
[null,null,null,null,null,-1]
[null,null,null,null,null,-1]
[null,null,null,null,null,-1]
[null,null,null,null,null,-1]
[null,null,null,null,null,-1]
[null,null,null,null,null,-1]
[null,null,null,null,null,-1]
[null,null,null,null,null,-1]
[null,null,null,null,null,-1]
[null,null,null,null,null,-1]
[null,null,null,null,null,-1]
[null,null,null,null,null,-1]
[null,null,null,null,null,-1]
[null,null,null,null,null,-1]
[null,null,null,null,null,-1]
[null,null,null,null,null,-1]
[null,null,null,null,null,-1]
[null,null,null,null,null,-1]
[null,null,null,null,null,-1]
[null,null,null,null,null,-1]
[null,null,null,null,null,-1]
[null,null,null,null,null,-1]
[null,null,null,null,null,-1]
[null,null,null,null,null,-1]
[null,null,null,null,null,-1]
[null,null,null,null,null,-1]
[null,null,null,null,null,-1]
[null,null,null,null,null,-1]
[null,null,null,null,null,-1]
[null,null,null,null,null,-1]
[null,null,null,null,null,-1]
[null,null,null,null,null,-1]
[null,null,null,null,null,-1]
[null,null,null,null,null,-1]
[null,null,null,null,null,-1]
[null,null,null,null,null,-1]
[null,null,null,null,null,-1]
[null,null,null,null,null,-1]
[null,null,null,null,null,-1]
[null,null,null,null,null,-1]
[null,null,null,null,null,-1]
[null,null,null,null,null,-1]
[null,null,null,null,null,-1]
[null,null,null,null,null,-1]
[null,null,null,null,null,-1]
[null,null,null,null,null,-1]
[null,null,null,null,null,-1]
[null,null,null,null,null,-1]
[null,null,null,null,null,{"$f":"IF(COUNT(A1539:E1539)>0,E1539+D1539*10+C1539*100+B1539*1000+A1539*10000,-1)","v":-1}]
[null,null,null,null,null,-1]
[null,null,null,null,null,-1]
[null,null,null,null,null,-1]
[null,null,null,null,null,-1]
[null,null,null,null,null,-1]
[null,null,null,null,null,-1]
[null,null,null,null,null,-1]
[null,null,null,null,null,-1]
[null,null,null,null,null,-1]
[null,null,null,null,null,-1]
[null,null,null,null,null,-1]
[null,null,null,null,null,-1]
[null,null,null,null,null,-1]
[null,null,null,null,null,-1]
[null,null,null,null,null,-1]
[null,null,null,null,null,-1]
[null,null,null,null,null,-1]
[null,null,null,null,null,-1]
[null,null,null,null,null,-1]
[null,null,null,null,null,-1]
[null,null,null,null,null,-1]
[null,null,null,null,null,-1]
[null,null,null,null,null,-1]
[null,null,null,null,null,-1]
[null,null,null,null,null,-1]
[null,null,null,null,null,-1]
[null,null,null,null,null,-1]
[null,null,null,null,null,-1]
[null,null,null,null,null,-1]
[null,null,null,null,null,-1]
[null,null,null,null,null,-1]
[null,null,null,null,null,-1]
[null,null,null,null,null,-1]
[null,null,null,null,null,-1]
[null,null,null,null,null,-1]
[null,null,null,null,null,-1]
[null,null,null,null,null,-1]
[null,null,null,null,null,-1]
[null,null,null,null,null,-1]
[null,null,null,null,null,-1]
[null,null,null,null,null,-1]
[null,null,null,null,null,-1]
[null,null,null,null,null,-1]
[null,null,null,null,null,-1]
[null,null,null,null,null,-1]
[null,null,null,null,null,-1]
[null,null,null,null,null,-1]
[null,null,null,null,null,-1]
[null,null,null,null,null,-1]
[null,null,null,null,null,-1]
[null,null,null,null,null,-1]
[null,null,null,null,null,-1]
[null,null,null,null,null,-1]
[null,null,null,null,null,-1]
[null,null,null,null,null,-1]
[null,null,null,null,null,-1]
[null,null,null,null,null,-1]
[null,null,null,null,null,-1]
[null,null,null,null,null,-1]
[null,null,null,null,null,-1]
[null,null,null,null,null,-1]
[null,null,null,null,null,-1]
[null,null,null,null,null,-1]
[null,null,null,null,null,{"$f":"IF(COUNT(A1603:E1603)>0,E1603+D1603*10+C1603*100+B1603*1000+A1603*10000,-1)","v":-1}]
[null,null,null,null,null,-1]
[null,null,null,null,null,-1]
[null,null,null,null,null,-1]
[null,null,null,null,null,-1]
[null,null,null,null,null,-1]
[null,null,null,null,null,-1]
[null,null,null,null,null,-1]
[null,null,null,null,null,-1]
[null,null,null,null,null,-1]
[null,null,null,null,null,-1]
[null,null,null,null,null,-1]
[null,null,null,null,null,-1]
[null,null,null,null,null,-1]
[null,null,null,null,null,-1]
[null,null,null,null,null,-1]
[null,null,null,null,null,-1]
[null,null,null,null,null,-1]
[null,null,null,null,null,-1]
[null,null,null,null,null,-1]
[null,null,null,null,null,-1]
[null,null,null,null,null,-1]
[null,null,null,null,null,-1]
[null,null,null,null,null,-1]
[null,null,null,null,null,-1]
[null,null,null,null,null,-1]
[null,null,null,null,null,-1]
[null,null,null,null,null,-1]
[null,null,null,null,null,-1]
[null,null,null,null,null,-1]
[null,null,null,null,null,-1]
[null,null,null,null,null,-1]
[null,null,null,null,null,-1]
[null,null,null,null,null,-1]
[null,null,null,null,null,-1]
[null,null,null,null,null,-1]
[null,null,null,null,null,-1]
[null,null,null,null,null,-1]
[null,null,null,null,null,-1]
[null,null,null,null,null,-1]
[null,null,null,null,null,-1]
[null,null,null,null,null,-1]
[null,null,null,null,null,-1]
[null,null,null,null,null,-1]
[null,null,null,null,null,-1]
[null,null,null,null,null,-1]
[null,null,null,null,null,-1]
[null,null,null,null,null,-1]
[null,null,null,null,null,-1]
[null,null,null,null,null,-1]
[null,null,null,null,null,-1]
[null,null,null,null,null,-1]
[null,null,null,null,null,-1]
[null,null,null,null,null,-1]
[null,null,null,null,null,-1]
[null,null,null,null,null,-1]
[null,null,null,null,null,-1]
[null,null,null,null,null,-1]
[null,null,null,null,null,-1]
[null,null,null,null,null,-1]
[null,null,null,null,null,-1]
[null,null,null,null,null,-1]
[null,null,null,null,null,-1]
[null,null,null,null,null,-1]
[null,null,null,null,null,{"$f":"IF(COUNT(A1667:E1667)>0,E1667+D1667*10+C1667*100+B1667*1000+A1667*10000,-1)","v":-1}]
[null,null,null,null,null,-1]
[null,null,null,null,null,-1]
[null,null,null,null,null,-1]
[null,null,null,null,null,-1]
[null,null,null,null,null,-1]
[null,null,null,null,null,-1]
[null,null,null,null,null,-1]
[null,null,null,null,null,-1]
[null,null,null,null,null,-1]
[null,null,null,null,null,-1]
[null,null,null,null,null,-1]
[null,null,null,null,null,-1]
[null,null,null,null,null,-1]
[null,null,null,null,null,-1]
[null,null,null,null,null,-1]
[null,null,null,null,null,-1]
[null,null,null,null,null,-1]
[null,null,null,null,null,-1]
[null,null,null,null,null,-1]
[null,null,null,null,null,-1]
[null,null,null,null,null,-1]
[null,null,null,null,null,-1]
[null,null,null,null,null,-1]
[null,null,null,null,null,-1]
[null,null,null,null,null,-1]
[null,null,null,null,null,-1]
[null,null,null,null,null,-1]
[null,null,null,null,null,-1]
[null,null,null,null,null,-1]
[null,null,null,null,null,-1]
[null,null,null,null,null,-1]
[null,null,null,null,null,-1]
[null,null,null,null,null,-1]
[null,null,null,null,null,-1]
[null,null,null,null,null,-1]
[null,null,null,null,null,-1]
[null,null,null,null,null,-1]
[null,null,null,null,null,-1]
[null,null,null,null,null,-1]
[null,null,null,null,null,-1]
[null,null,null,null,null,-1]
[null,null,null,null,null,-1]
[null,null,null,null,null,-1]
[null,null,null,null,null,-1]
[null,null,null,null,null,-1]
[null,null,null,null,null,-1]
[null,null,null,null,null,-1]
[null,null,null,null,null,-1]
[null,null,null,null,null,-1]
[null,null,null,null,null,-1]
[null,null,null,null,null,-1]
[null,null,null,null,null,-1]
[null,null,null,null,null,-1]
[null,null,null,null,null,-1]
[null,null,null,null,null,-1]
[null,null,null,null,null,-1]
[null,null,null,null,null,-1]
[null,null,null,null,null,-1]
[null,null,null,null,null,-1]
[null,null,null,null,null,-1]
[null,null,null,null,null,-1]
[null,null,null,null,null,-1]
[null,null,null,null,null,-1]
[null,null,null,null,null,{"$f":"IF(COUNT(A1731:E1731)>0,E1731+D1731*10+C1731*100+B1731*1000+A1731*10000,-1)","v":-1}]
[null,null,null,null,null,-1]
[null,null,null,null,null,-1]
[null,null,null,null,null,-1]
[null,null,null,null,null,-1]
[null,null,null,null,null,-1]
[null,null,null,null,null,-1]
[null,null,null,null,null,-1]
[null,null,null,null,null,-1]
[null,null,null,null,null,-1]
[null,null,null,null,null,-1]
[null,null,null,null,null,-1]
[null,null,null,null,null,-1]
[null,null,null,null,null,-1]
[null,null,null,null,null,-1]
[null,null,null,null,null,-1]
[null,null,null,null,null,-1]
[null,null,null,null,null,-1]
[null,null,null,null,null,-1]
[null,null,null,null,null,-1]
[null,null,null,null,null,-1]
[null,null,null,null,null,-1]
[null,null,null,null,null,-1]
[null,null,null,null,null,-1]
[null,null,null,null,null,-1]
[null,null,null,null,null,-1]
[null,null,null,null,null,-1]
[null,null,null,null,null,-1]
[null,null,null,null,null,-1]
[null,null,null,null,null,-1]
[null,null,null,null,null,-1]
[null,null,null,null,null,-1]
[null,null,null,null,null,-1]
[null,null,null,null,null,-1]
[null,null,null,null,null,-1]
[null,null,null,null,null,-1]
[null,null,null,null,null,-1]
[null,null,null,null,null,-1]
[null,null,null,null,null,-1]
[null,null,null,null,null,-1]
[null,null,null,null,null,-1]
[null,null,null,null,null,-1]
[null,null,null,null,null,-1]
[null,null,null,null,null,-1]
[null,null,null,null,null,-1]
[null,null,null,null,null,-1]
[null,null,null,null,null,-1]
[null,null,null,null,null,-1]
[null,null,null,null,null,-1]
[null,null,null,null,null,-1]
[null,null,null,null,null,-1]
[null,null,null,null,null,-1]
[null,null,null,null,null,-1]
[null,null,null,null,null,-1]
[null,null,null,null,null,-1]
[null,null,null,null,null,-1]
[null,null,null,null,null,-1]
[null,null,null,null,null,-1]
[null,null,null,null,null,-1]
[null,null,null,null,null,-1]
[null,null,null,null,null,-1]
[null,null,null,null,null,-1]
[null,null,null,null,null,-1]
[null,null,null,null,null,-1]
[null,null,null,null,null,{"$f":"IF(COUNT(A1795:E1795)>0,E1795+D1795*10+C1795*100+B1795*1000+A1795*10000,-1)","v":-1}]
[null,null,null,null,null,-1]
[null,null,null,null,null,-1]
[null,null,null,null,null,-1]
[null,null,null,null,null,-1]
[null,null,null,null,null,-1]
[null,null,null,null,null,-1]
[null,null,null,null,null,-1]
[null,null,null,null,null,-1]
[null,null,null,null,null,-1]
[null,null,null,null,null,-1]
[null,null,null,null,null,-1]
[null,null,null,null,null,-1]
[null,null,null,null,null,-1]
[null,null,null,null,null,-1]
[null,null,null,null,null,-1]
[null,null,null,null,null,-1]
[null,null,null,null,null,-1]
[null,null,null,null,null,-1]
[null,null,null,null,null,-1]
[null,null,null,null,null,-1]
[null,null,null,null,null,-1]
[null,null,null,null,null,-1]
[null,null,null,null,null,-1]
[null,null,null,null,null,-1]
[null,null,null,null,null,-1]
[null,null,null,null,null,-1]
[null,null,null,null,null,-1]
[null,null,null,null,null,-1]
[null,null,null,null,null,-1]
[null,null,null,null,null,-1]
[null,null,null,null,null,-1]
[null,null,null,null,null,-1]
[null,null,null,null,null,-1]
[null,null,null,null,null,-1]
[null,null,null,null,null,-1]
[null,null,null,null,null,-1]
[null,null,null,null,null,-1]
[null,null,null,null,null,-1]
[null,null,null,null,null,-1]
[null,null,null,null,null,-1]
[null,null,null,null,null,-1]
[null,null,null,null,null,-1]
[null,null,null,null,null,-1]
[null,null,null,null,null,-1]
[null,null,null,null,null,-1]
[null,null,null,null,null,-1]
[null,null,null,null,null,-1]
[null,null,null,null,null,-1]
[null,null,null,null,null,-1]
[null,null,null,null,null,-1]
[null,null,null,null,null,-1]
[null,null,null,null,null,-1]
[null,null,null,null,null,-1]
[null,null,null,null,null,-1]
[null,null,null,null,null,-1]
[null,null,null,null,null,-1]
[null,null,null,null,null,-1]
[null,null,null,null,null,-1]
[null,null,null,null,null,-1]
[null,null,null,null,null,-1]
[null,null,null,null,null,-1]
[null,null,null,null,null,-1]
[null,null,null,null,null,-1]
[null,null,null,null,null,{"$f":"IF(COUNT(A1859:E1859)>0,E1859+D1859*10+C1859*100+B1859*1000+A1859*10000,-1)","v":-1}]
[null,null,null,null,null,-1]
[null,null,null,null,null,-1]
[null,null,null,null,null,-1]
[null,null,null,null,null,-1]
[null,null,null,null,null,-1]
[null,null,null,null,null,-1]
[null,null,null,null,null,-1]
[null,null,null,null,null,-1]
[null,null,null,null,null,-1]
[null,null,null,null,null,-1]
[null,null,null,null,null,-1]
[null,null,null,null,null,-1]
[null,null,null,null,null,-1]
[null,null,null,null,null,-1]
[null,null,null,null,null,-1]
[null,null,null,null,null,-1]
[null,null,null,null,null,-1]
[null,null,null,null,null,-1]
[null,null,null,null,null,-1]
[null,null,null,null,null,-1]
[null,null,null,null,null,-1]
[null,null,null,null,null,-1]
[null,null,null,null,null,-1]
[null,null,null,null,null,-1]
[null,null,null,null,null,-1]
[null,null,null,null,null,-1]
[null,null,null,null,null,-1]
[null,null,null,null,null,-1]
[null,null,null,null,null,-1]
[null,null,null,null,null,-1]
[null,null,null,null,null,-1]
[null,null,null,null,null,-1]
[null,null,null,null,null,-1]
[null,null,null,null,null,-1]
[null,null,null,null,null,-1]
[null,null,null,null,null,-1]
[null,null,null,null,null,-1]
[null,null,null,null,null,-1]
[null,null,null,null,null,-1]
[null,null,null,null,null,-1]
[null,null,null,null,null,-1]
[null,null,null,null,null,-1]
[null,null,null,null,null,-1]
[null,null,null,null,null,-1]
[null,null,null,null,null,-1]
[null,null,null,null,null,-1]
[null,null,null,null,null,-1]
[null,null,null,null,null,-1]
[null,null,null,null,null,-1]
[null,null,null,null,null,-1]
[null,null,null,null,null,-1]
[null,null,null,null,null,-1]
[null,null,null,null,null,-1]
[null,null,null,null,null,-1]
[null,null,null,null,null,-1]
[null,null,null,null,null,-1]
[null,null,null,null,null,-1]
[null,null,null,null,null,-1]
[null,null,null,null,null,-1]
[null,null,null,null,null,-1]
[null,null,null,null,null,-1]
[null,null,null,null,null,-1]
[null,null,null,null,null,-1]
[null,null,null,null,null,{"$f":"IF(COUNT(A1923:E1923)>0,E1923+D1923*10+C1923*100+B1923*1000+A1923*10000,-1)","v":-1}]
[null,null,null,null,null,-1]
[null,null,null,null,null,-1]
[null,null,null,null,null,-1]
[null,null,null,null,null,-1]
[null,null,null,null,null,-1]
[null,null,null,null,null,-1]
[null,null,null,null,null,-1]
[null,null,null,null,null,-1]
[null,null,null,null,null,-1]
[null,null,null,null,null,-1]
[null,null,null,null,null,-1]
[null,null,null,null,null,-1]
[null,null,null,null,null,-1]
[null,null,null,null,null,-1]
[null,null,null,null,null,-1]
[null,null,null,null,null,-1]
[null,null,null,null,null,-1]
[null,null,null,null,null,-1]
[null,null,null,null,null,-1]
[null,null,null,null,null,-1]
[null,null,null,null,null,-1]
[null,null,null,null,null,-1]
[null,null,null,null,null,-1]
[null,null,null,null,null,-1]
[null,null,null,null,null,-1]
[null,null,null,null,null,-1]
[null,null,null,null,null,-1]
[null,null,null,null,null,-1]
[null,null,null,null,null,-1]
[null,null,null,null,null,-1]
[null,null,null,null,null,-1]
[null,null,null,null,null,-1]
[null,null,null,null,null,-1]
[null,null,null,null,null,-1]
[null,null,null,null,null,-1]
[null,null,null,null,null,-1]
[null,null,null,null,null,-1]
[null,null,null,null,null,-1]
[null,null,null,null,null,-1]
[null,null,null,null,null,-1]
[null,null,null,null,null,-1]
[null,null,null,null,null,-1]
[null,null,null,null,null,-1]
[null,null,null,null,null,-1]
[null,null,null,null,null,-1]
[null,null,null,null,null,-1]
[null,null,null,null,null,-1]
[null,null,null,null,null,-1]
[null,null,null,null,null,-1]
[null,null,null,null,null,-1]
[null,null,null,null,null,-1]
[null,null,null,null,null,-1]
[null,null,null,null,null,-1]
[null,null,null,null,null,-1]
[null,null,null,null,null,-1]
[null,null,null,null,null,-1]
[null,null,null,null,null,-1]
[null,null,null,null,null,-1]
[null,null,null,null,null,-1]
[null,null,null,null,null,-1]
[null,null,null,null,null,-1]
[null,null,null,null,null,-1]
[null,null,null,null,null,-1]
[null,null,null,null,null,{"$f":"IF(COUNT(A1987:E1987)>0,E1987+D1987*10+C1987*100+B1987*1000+A1987*10000,-1)","v":-1}]
[null,null,null,null,null,-1]
[null,null,null,null,null,-1]
[null,null,null,null,null,-1]
[null,null,null,null,null,-1]
[null,null,null,null,null,-1]
[null,null,null,null,null,-1]
[null,null,null,null,null,-1]
[null,null,null,null,null,-1]
[null,null,null,null,null,-1]
[null,null,null,null,null,-1]
[null,null,null,null,null,-1]
[null,null,null,null,null,-1]
[null,null,null,null,null,-1]
[null,null,null,null,null,-1]
[null,null,null,null,null,-1]
[null,null,null,null,null,-1]
[null,null,null,null,null,-1]
[null,null,null,null,null,-1]
[null,null,null,null,null,-1]
[null,null,null,null,null,-1]
[null,null,null,null,null,-1]
[null,null,null,null,null,-1]
[null,null,null,null,null,-1]
[null,null,null,null,null,-1]
[null,null,null,null,null,-1]
[null,null,null,null,null,-1]
[null,null,null,null,null,-1]
[null,null,null,null,null,-1]
[null,null,null,null,null,-1]
[null,null,null,null,null,-1]
[null,null,null,null,null,-1]
[null,null,null,null,null,-1]
[null,null,null,null,null,-1]
[null,null,null,null,null,-1]
[null,null,null,null,null,-1]
[null,null,null,null,null,-1]
[null,null,null,null,null,-1]
[null,null,null,null,null,-1]
[null,null,null,null,null,-1]
[null,null,null,null,null,-1]
[null,null,null,null,null,-1]
[null,null,null,null,null,-1]
[null,null,null,null,null,-1]
[null,null,null,null,null,-1]
[null,null,null,null,null,-1]
[null,null,null,null,null,-1]
[null,null,null,null,null,-1]
[null,null,null,null,null,-1]
[null,null,null,null,null,-1]
[null,null,null,null,null,-1]
[null,null,null,null,null,-1]
[null,null,null,null,null,-1]
[null,null,null,null,null,-1]
[null,null,null,null,null,-1]
[null,null,null,null,null,-1]
[null,null,null,null,null,-1]
[null,null,null,null,null,-1]
[null,null,null,null,null,-1]
[null,null,null,null,null,-1]
[null,null,null,null,null,-1]
[null,null,null,null,null,-1]
[null,null,null,null,null,-1]
[null,null,null,null,null,-1]
[null,null,null,null,null,-1]
[null,null,null,null,null,-1]
[null,null,null,null,null,-1]
[null,null,null,null,null,-1]
[null,null,null,null,null,-1]
[null,null,null,null,null,-1]
[null,null,null,null,null,-1]
[null,null,null,null,null,-1]
[null,null,null,null,null,-1]
[null,null,null,null,null,-1]
[null,null,null,null,null,{"$f":"IF(COUNT(A4931:E4931)>0,E4931+D4931*10+C4931*100+B4931*1000+A4931*10000,-1)","v":-1}]
[null,null,null,null,null,-1]
[null,null,null,null,null,{"$f":"IF(COUNT(A5059:E5059)>0,E5059+D5059*10+C5059*100+B5059*1000+A5059*10000,-1)","v":-1}]
[null,null,null,null,null,-1]
[null,null,null,null,null,-1]
[null,null,null,null,null,-1]
[null,null,null,null,null,-1]
[null,null,null,null,null,-1]
[null,null,null,null,null,-1]
[null,null,null,null,null,-1]
[null,null,null,null,null,-1]
[null,null,null,null,null,-1]
[null,null,null,null,null,-1]
[null,null,null,null,null,-1]
[null,null,null,null,null,-1]
[null,null,null,null,null,-1]
[null,null,null,null,null,-1]
[null,null,null,null,null,-1]
[null,null,null,null,null,-1]
[null,null,null,null,null,-1]
[null,null,null,null,null,-1]
[null,null,null,null,null,-1]
[null,null,null,null,null,-1]
[null,null,null,null,null,-1]
[null,null,null,null,null,-1]
[null,null,null,null,null,-1]
[null,null,null,null,null,-1]
[null,null,null,null,null,-1]
[null,null,null,null,null,-1]
[null,null,null,null,null,-1]
[null,null,null,null,null,-1]
[null,null,null,null,null,-1]
[null,null,null,null,null,-1]
[null,null,null,null,null,-1]
[null,null,null,null,null,-1]
[null,null,null,null,null,-1]
[null,null,null,null,null,-1]
[null,null,null,null,null,-1]
[null,null,null,null,null,{"$f":"IF(COUNT(A6787:E6787)>0,E6787+D6787*10+C6787*100+B6787*1000+A6787*10000,-1)","v":-1}]
[null,null,null,null,null,-1]
[null,null,null,null,null,-1]
[null,null,null,null,null,-1]
[null,null,null,null,null,-1]
[null,null,null,null,null,-1]
[null,null,null,null,null,-1]
[null,null,null,null,null,-1]
[null,null,null,null,null,-1]
[null,null,null,null,null,-1]
[null,null,null,null,null,-1]
[null,null,null,null,null,-1]
[null,null,null,null,null,-1]
[null,null,null,null,null,-1]
[null,null,null,null,null,-1]
[null,null,null,null,null,-1]
[null,null,null,null,null,-1]
[null,null,null,null,null,-1]
[null,null,null,null,null,-1]
[null,null,null,null,null,-1]
[null,null,null,null,null,-1]
[null,null,null,null,null,-1]
[null,null,null,null,null,-1]
[null,null,null,null,null,-1]
[null,null,null,null,null,-1]
[null,null,null,null,null,-1]
[null,null,null,null,null,{"$f":"IF(COUNT(A8067:E8067)>0,E8067+D8067*10+C8067*100+B8067*1000+A8067*10000,-1)","v":-1}]
[null,null,null,null,null,-1]
[null,null,null,null,null,-1]
[null,null,null,null,null,-1]
[null,null,null,null,null,-1]
[null,null,null,null,null,-1]
[null,null,null,null,null,-1]
[null,null,null,null,null,-1]
[null,null,null,null,null,-1]
[null,null,null,null,null,-1]
[null,null,null,null,null,-1]
[null,null,null,null,null,-1]
[null,null,null,null,null,-1]
[null,null,null,null,null,-1]
[null,null,null,null,null,-1]
[null,null,null,null,null,-1]
[null,null,null,null,null,-1]
[null,null,null,null,null,-1]
[null,null,null,null,null,-1]
[null,null,null,null,null,-1]
[null,null,null,null,null,-1]
[null,null,null,null,null,-1]
[null,null,null,null,null,-1]
[null,null,null,null,null,-1]
[null,null,null,null,null,-1]
[null,null,null,null,null,-1]
[null,null,null,null,null,-1]
[null,null,null,null,null,-1]
[null,null,null,null,null,-1]
[null,null,null,null,null,-1]
[null,null,null,null,null,-1]
[null,null,null,null,null,-1]
[null,null,null,null,null,-1]
[null,null,null,null,null,-1]
[null,null,null,null,null,-1]
[null,null,null,null,null,-1]
[null,null,null,null,null,-1]
[null,null,null,null,null,-1]
[null,null,null,null,null,-1]
[null,null,null,null,null,-1]
[null,null,null,null,null,-1]
[null,null,null,null,null,-1]
[null,null,null,null,null,-1]
[null,null,null,null,null,-1]
[null,null,null,null,null,-1]
[null,null,null,null,null,-1]
[null,null,null,null,null,-1]
[null,null,null,null,null,-1]
[null,null,null,null,null,-1]
[null,null,null,null,null,-1]
[null,null,null,null,null,-1]
[null,null,null,null,null,-1]
[null,null,null,null,null,-1]
[null,null,null,null,null,-1]
[null,null,null,null,null,-1]
[null,null,null,null,null,-1]
[null,null,null,null,null,-1]
[null,null,null,null,null,-1]
[null,null,null,null,null,-1]
[null,null,null,null,null,-1]
[null,null,null,null,null,-1]
[null,null,null,null,null,-1]
[null,null,null,null,null,-1]
[null,null,null,null,null,-1]
[null,null,null,null,null,-1]
[null,null,null,null,null,-1]
[null,null,null,null,null,-1]
[null,null,null,null,null,-1]
[null,null,null,null,null,-1]
[null,null,null,null,null,-1]
[null,null,null,null,null,-1]
[null,null,null,null,null,-1]
[null,null,null,null,null,-1]
[null,null,null,null,null,-1]
[null,null,null,null,null,-1]
[null,null,null,null,null,-1]
[null,null,null,null,null,-1]
[null,null,null,null,null,-1]
[null,null,null,null,null,-1]
[null,null,null,null,null,-1]
[null,null,null,null,null,-1]
[null,null,null,null,null,-1]
[null,null,null,null,null,-1]
[null,null,null,null,null,-1]
[null,null,null,null,null,-1]
[null,null,null,null,null,-1]
[null,null,null,null,null,-1]
[null,null,null,null,null,-1]
[null,null,null,null,null,-1]
[null,null,null,null,null,-1]
[null,null,null,null,null,-1]
[null,null,null,null,null,-1]
[null,null,null,null,null,-1]
[null,null,null,null,null,-1]
[null,null,null,null,null,-1]
[null,null,null,null,null,-1]
[null,null,null,null,null,-1]
[null,null,null,null,null,-1]
[null,null,null,null,null,-1]
[null,null,null,null,null,-1]
[null,null,null,null,null,-1]
[null,null,null,null,null,-1]
[null,null,null,null,null,-1]
[null,null,null,null,null,-1]
[null,null,null,null,null,-1]
[null,null,null,null,null,-1]
[null,null,null,null,null,-1]
[null,null,null,null,null,-1]
[null,null,null,null,null,-1]
[null,null,null,null,null,-1]
[null,null,null,null,null,-1]
[null,null,null,null,null,-1]
[null,null,null,null,null,-1]
[null,null,null,null,null,-1]
[null,null,null,null,null,-1]
[null,null,null,null,null,-1]
[null,null,null,null,null,-1]
[null,null,null,null,null,-1]
[null,null,null,null,null,-1]
[null,null,null,null,null,-1]
[null,null,null,null,null,-1]
[null,null,null,null,null,-1]
[null,null,null,null,null,-1]
[null,null,null,null,null,-1]
[null,null,null,null,null,-1]
[null,null,null,null,null,-1]
[null,null,null,null,null,-1]
[null,null,null,null,null,-1]
[null,null,null,null,null,-1]
[null,null,null,null,null,-1]
[null,null,null,null,null,-1]
[null,null,null,null,null,-1]
[null,null,null,null,null,-1]
[null,null,null,null,null,-1]
[null,null,null,null,null,-1]
[null,null,null,null,null,-1]
[null,null,null,null,null,-1]
[null,null,null,null,null,-1]
[null,null,null,null,null,-1]
[null,null,null,null,null,-1]
[null,null,null,null,null,-1]
[null,null,null,null,null,-1]
[null,null,null,null,null,-1]
[null,null,null,null,null,-1]
[null,null,null,null,null,-1]
[null,null,null,null,null,-1]
[null,null,null,null,null,-1]
[null,null,null,null,null,-1]
[null,null,null,null,null,-1]
[null,null,null,null,null,-1]
[null,null,null,null,null,-1]
[null,null,null,null,null,-1]
[null,null,null,null,null,-1]
[null,null,null,null,null,-1]
[null,null,null,null,null,-1]
[null,null,null,null,null,-1]
[null,null,null,null,null,-1]
[null,null,null,null,null,-1]
[null,null,null,null,null,-1]
[null,null,null,null,null,-1]
[null,null,null,null,null,-1]
[null,null,null,null,null,-1]
[null,null,null,null,null,-1]
[null,null,null,null,null,-1]
[null,null,null,null,null,-1]
[null,null,null,null,null,-1]
[null,null,null,null,null,-1]
[null,null,null,null,null,-1]
[null,null,null,null,null,-1]
[null,null,null,null,null,-1]
[null,null,null,null,null,-1]
[null,null,null,null,null,-1]
[null,null,null,null,null,-1]
[null,null,null,null,null,-1]
[null,null,null,null,null,-1]
[null,null,null,null,null,-1]
[null,null,null,null,null,-1]
[null,null,null,null,null,-1]
[null,null,null,null,null,-1]
[null,null,null,null,null,-1]
[null,null,null,null,null,-1]
[null,null,null,null,null,-1]
[null,null,null,null,null,-1]
[null,null,null,null,null,-1]
[null,null,null,null,null,-1]
[null,null,null,null,null,-1]
[null,null,null,null,null,-1]
[null,null,null,null,null,-1]
[null,null,null,null,null,-1]
[null,null,null,null,null,-1]
[null,null,null,null,null,-1]
[null,null,null,null,null,-1]
[null,null,null,null,null,-1]
[null,null,null,null,null,-1]
[null,null,null,null,null,-1]
[null,null,null,null,null,-1]
[null,null,null,null,null,-1]
[null,null,null,null,null,-1]
[null,null,null,null,null,-1]
[null,null,null,null,null,-1]
[null,null,null,null,null,-1]
[null,null,null,null,null,-1]
[null,null,null,null,null,-1]
[null,null,null,null,null,-1]
[null,null,null,null,null,-1]
[null,null,null,null,null,-1]
[null,null,null,null,null,-1]
[null,null,null,null,null,-1]
[null,null,null,null,null,-1]
[null,null,null,null,null,-1]
[null,null,null,null,null,{"$f":"IF(COUNT(A18307:E18307)>0,E18307+D18307*10+C18307*100+B18307*1000+A18307*10000,-1)","v":-1}]
[null,null,null,null,null,-1]
[null,null,null,null,null,-1]
[null,null,null,null,null,-1]
[null,null,null,null,null,-1]
[null,null,null,null,null,-1]
[null,null,null,null,null,-1]
[null,null,null,null,null,-1]
[null,null,null,null,null,-1]
[null,null,null,null,null,-1]
[null,null,null,null,null,-1]
[null,null,null,null,null,-1]
[null,null,null,null,null,-1]
[null,null,null,null,null,-1]
[null,null,null,null,null,-1]
[null,null,null,null,null,-1]
[null,null,null,null,null,-1]
[null,null,null,null,null,-1]
[null,null,null,null,null,-1]
[null,null,null,null,null,-1]
[null,null,null,null,null,-1]
[null,null,null,null,null,-1]
[null,null,null,null,null,-1]
[null,null,null,null,null,-1]
[null,null,null,null,null,-1]
[null,null,null,null,null,-1]
[null,null,null,null,null,-1]
[null,null,null,null,null,-1]
[null,null,null,null,null,-1]
[null,null,null,null,null,-1]
[null,null,null,null,null,-1]
[null,null,null,null,null,-1]
[null,null,null,null,null,-1]
[null,null,null,null,null,-1]
[null,null,null,null,null,-1]
[null,null,null,null,null,-1]
[null,null,null,null,null,-1]
[null,null,null,null,null,-1]
[null,null,null,null,null,-1]
[null,null,null,null,null,-1]
[null,null,null,null,null,-1]
[null,null,null,null,null,-1]
[null,null,null,null,null,-1]
[null,null,null,null,null,-1]
[null,null,null,null,null,-1]
[null,null,null,null,null,-1]
[null,null,null,null,null,-1]
[null,null,null,null,null,-1]
[null,null,null,null,null,-1]
[null,null,null,null,null,-1]
[null,null,null,null,null,-1]
[null,null,null,null,null,-1]
[null,null,null,null,null,-1]
[null,null,null,null,null,-1]
[null,null,null,null,null,-1]
[null,null,null,null,null,-1]
[null,null,null,null,null,-1]
[null,null,null,null,null,-1]
[null,null,null,null,null,-1]
[null,null,null,null,null,-1]
[null,null,null,null,null,-1]
[null,null,null,null,null,-1]
[null,null,null,null,null,-1]
[null,null,null,null,null,-1]
[null,null,null,null,null,-1]
[null,null,null,null,null,-1]
[null,null,null,null,null,-1]
[null,null,null,null,null,-1]
[null,null,null,null,null,-1]
[null,null,null,null,null,-1]
[null,null,null,null,null,-1]
[null,null,null,null,null,-1]
[null,null,null,null,null,-1]
[null,null,null,null,null,-1]
[null,null,null,null,null,-1]
[null,null,null,null,null,-1]
[null,null,null,null,null,-1]
[null,null,null,null,null,-1]
[null,null,null,null,null,-1]
[null,null,null,null,null,-1]
[null,null,null,null,null,-1]
[null,null,null,null,null,-1]
[null,null,null,null,null,-1]
[null,null,null,null,null,-1]
[null,null,null,null,null,-1]
[null,null,null,null,null,-1]
[null,null,null,null,null,-1]
[null,null,null,null,null,-1]
[null,null,null,null,null,-1]
[null,null,null,null,null,-1]
[null,null,null,null,null,-1]
[null,null,null,null,null,-1]
[null,null,null,null,null,-1]
[null,null,null,null,null,-1]
[null,null,null,null,null,-1]
[null,null,null,null,null,-1]
[null,null,null,null,null,-1]
[null,null,null,null,null,-1]
[null,null,null,null,null,-1]
[null,null,null,null,null,-1]
[null,null,null,null,null,-1]
[null,null,null,null,null,-1]
[null,null,null,null,null,-1]
[null,null,null,null,null,-1]
[null,null,null,null,null,-1]
[null,null,null,null,null,-1]
[null,null,null,null,null,-1]
[null,null,null,null,null,-1]
[null,null,null,null,null,-1]
[null,null,null,null,null,-1]
[null,null,null,null,null,-1]
[null,null,null,null,null,-1]
[null,null,null,null,null,-1]
[null,null,null,null,null,-1]
[null,null,null,null,null,-1]
[null,null,null,null,null,-1]
[null,null,null,null,null,-1]
[null,null,null,null,null,-1]
[null,null,null,null,null,-1]
[null,null,null,null,null,-1]
[null,null,null,null,null,-1]
[null,null,null,null,null,-1]
[null,null,null,null,null,-1]
[null,null,null,null,null,-1]
[null,null,null,null,null,-1]
[null,null,null,null,null,-1]
[null,null,null,null,null,-1]
[null,null,null,null,null,-1]
[null,null,null,null,null,-1]
[null,null,null,null,null,-1]
[null,null,null,null,null,-1]
[null,null,null,null,null,-1]
[null,null,null,null,null,-1]
[null,null,null,null,null,-1]
[null,null,null,null,null,-1]
[null,null,null,null,null,-1]
[null,null,null,null,null,-1]
[null,null,null,null,null,-1]
[null,null,null,null,null,-1]
[null,null,null,null,null,-1]
[null,null,null,null,null,-1]
[null,null,null,null,null,-1]
[null,null,null,null,null,-1]
[null,null,null,null,null,-1]
[null,null,null,null,null,-1]
[null,null,null,null,null,-1]
[null,null,null,null,null,-1]
[null,null,null,null,null,-1]
[null,null,null,null,null,-1]
[null,null,null,null,null,-1]
[null,null,null,null,null,-1]
[null,null,null,null,null,-1]
[null,null,null,null,null,-1]
[null,null,null,null,null,-1]
[null,null,null,null,null,-1]
[null,null,null,null,null,-1]
[null,null,null,null,null,-1]
[null,null,null,null,null,-1]
[null,null,null,null,null,-1]
[null,null,null,null,null,-1]
[null,null,null,null,null,-1]
[null,null,null,null,null,-1]
[null,null,null,null,null,-1]
[null,null,null,null,null,-1]
[null,null,null,null,null,-1]
[null,null,null,null,null,-1]
[null,null,null,null,null,-1]
[null,null,null,null,null,-1]
[null,null,null,null,null,-1]
[null,null,null,null,null,-1]
[null,null,null,null,null,-1]
[null,null,null,null,null,-1]
[null,null,null,null,null,-1]
[null,null,null,null,null,-1]
[null,null,null,null,null,-1]
[null,null,null,null,null,-1]
[null,null,null,null,null,-1]
[null,null,null,null,null,-1]
[null,null,null,null,null,-1]
[null,null,null,null,null,-1]
[null,null,null,null,null,-1]
[null,null,null,null,null,-1]
[null,null,null,null,null,-1]
[null,null,null,null,null,-1]
[null,null,null,null,null,-1]
[null,null,null,null,null,-1]
[null,null,null,null,null,-1]
[null,null,null,null,null,-1]
[null,null,null,null,null,-1]
[null,null,null,null,null,-1]
[null,null,null,null,null,-1]
[null,null,null,null,null,-1]
[null,null,null,null,null,-1]
[null,null,null,null,null,-1]
[null,null,null,null,null,-1]
[null,null,null,null,null,-1]
[null,null,null,null,null,-1]
[null,null,null,null,null,-1]
[null,null,null,null,null,-1]
[null,null,null,null,null,-1]
[null,null,null,null,null,-1]
[null,null,null,null,null,-1]
[null,null,null,null,null,-1]
[null,null,null,null,null,-1]
[null,null,null,null,null,-1]
[null,null,null,null,null,-1]
[null,null,null,null,null,-1]
[null,null,null,null,null,-1]
[null,null,null,null,null,-1]
[null,null,null,null,null,-1]
[null,null,null,null,null,-1]
[null,null,null,null,null,-1]
[null,null,null,null,null,-1]
[null,null,null,null,null,-1]
[null,null,null,null,null,-1]
[null,null,null,null,null,-1]
[null,null,null,null,null,-1]
[null,null,null,null,null,-1]
[null,null,null,null,null,-1]
[null,null,null,null,null,-1]
[null,null,null,null,null,-1]
[null,null,null,null,null,-1]
[null,null,null,null,null,-1]
[null,null,null,null,null,-1]
[null,null,null,null,null,-1]
[null,null,null,null,null,-1]
[null,null,null,null,null,-1]
[null,null,null,null,null,-1]
[null,null,null,null,null,-1]
[null,null,null,null,null,-1]
[null,null,null,null,null,-1]
[null,null,null,null,null,-1]
[null,null,null,null,null,-1]
[null,null,null,null,null,-1]
[null,null,null,null,null,-1]
[null,null,null,null,null,-1]
[null,null,null,null,null,{"$f":"IF(COUNT(A29827:E29827)>0,E29827+D29827*10+C29827*100+B29827*1000+A29827*10000,-1)","v":-1}]
[null,null,null,null,null,-1]
[null,null,null,null,null,-1]
[null,null,null,null,null,-1]
[null,null,null,null,null,-1]
[null,null,null,null,null,-1]
[null,null,null,null,null,-1]
[null,null,null,null,null,-1]
[null,null,null,null,null,-1]
[null,null,null,null,null,-1]
[null,null,null,null,null,-1]
[null,null,null,null,null,-1]
[null,null,null,null,null,-1]
[null,null,null,null,null,-1]
[null,null,null,null,null,-1]
[null,null,null,null,null,-1]
[null,null,null,null,null,-1]
[null,null,null,null,null,-1]
[null,null,null,null,null,-1]
[null,null,null,null,null,-1]
[null,null,null,null,null,-1]
[null,null,null,null,null,-1]
[null,null,null,null,null,-1]
[null,null,null,null,null,-1]
[null,null,null,null,null,-1]
[null,null,null,null,null,-1]
[null,null,null,null,null,-1]
[null,null,null,null,null,-1]
[null,null,null,null,null,-1]
[null,null,null,null,null,-1]
[null,null,null,null,null,-1]
[null,null,null,null,null,-1]
[null,null,null,null,null,-1]
[null,null,null,null,null,-1]
[null,null,null,null,null,-1]
[null,null,null,null,null,-1]
[null,null,null,null,null,{"$f":"IF(COUNT(A31555:E31555)>0,E31555+D31555*10+C31555*100+B31555*1000+A31555*10000,-1)","v":-1}]
[null,null,null,null,null,-1]
[null,null,null,null,null,-1]
[null,null,null,null,null,-1]
[null,null,null,null,null,-1]
[null,null,null,null,null,-1]
[null,null,null,null,null,-1]
[null,null,null,null,null,-1]
[null,null,null,null,null,-1]
[null,null,null,null,null,-1]
[null,null,null,null,null,-1]
[null,null,null,null,null,-1]
[null,null,null,null,null,-1]
[null,null,null,null,null,-1]
[null,null,null,null,null,-1]
[null,null,null,null,null,-1]
[null,null,null,null,null,-1]
[null,null,null,null,null,-1]
[null,null,null,null,null,-1]
[null,null,null,null,null,-1]
[null,null,null,null,null,-1]
[null,null,null,null,null,-1]
[null,null,null,null,null,-1]
[null,null,null,null,null,-1]
[null,null,null,null,null,-1]
[null,null,null,null,null,-1]
[null,null,null,null,null,-1]
[null,null,null,null,null,-1]
[null,null,null,null,null,-1]
[null,null,null,null,null,-1]
[null,null,null,null,null,{"$f":"IF(COUNT(A33027:E33027)>0,E33027+D33027*10+C33027*100+B33027*1000+A33027*10000,-1)","v":-1}]
[null,null,null,null,null,-1]
[null,null,null,null,null,-1]
[null,null,null,null,null,-1]
[null,null,null,null,null,-1]
[null,null,null,null,null,-1]
[null,null,null,null,null,-1]
[null,null,null,null,null,-1]
[null,null,null,null,null,-1]
[null,null,null,null,null,-1]
[null,null,null,null,null,-1]
[null,null,null,null,null,-1]
[null,null,null,null,null,-1]
[null,null,null,null,null,-1]
[null,null,null,null,null,-1]
[null,null,null,null,null,-1]
[null,null,null,null,null,-1]
[null,null,null,null,null,-1]
[null,null,null,null,null,-1]
[null,null,null,null,null,-1]
[null,null,null,null,null,-1]
[null,null,null,null,null,-1]
[null,null,null,null,null,-1]
[null,null,null,null,null,-1]
[null,null,null,null,null,-1]
[null,null,null,null,null,-1]
[null,null,null,null,null,-1]
[null,null,null,null,null,-1]
[null,null,null,null,null,-1]
[null,null,null,null,null,-1]
[null,null,null,null,null,-1]
[null,null,null,null,null,-1]
[null,null,null,null,null,-1]
[null,null,null,null,null,-1]
[null,null,null,null,null,-1]
[null,null,null,null,null,-1]
[null,null,null,null,null,-1]
[null,null,null,null,null,-1]
[null,null,null,null,null,-1]
[null,null,null,null,null,-1]
[null,null,null,null,null,-1]
[null,null,null,null,null,-1]
[null,null,null,null,null,-1]
[null,null,null,null,null,-1]
[null,null,null,null,null,-1]
[null,null,null,null,null,-1]
[null,null,null,null,null,-1]
[null,null,null,null,null,-1]
[null,null,null,null,null,-1]
[null,null,null,null,null,-1]
[null,null,null,null,null,-1]
[null,null,null,null,null,-1]
[null,null,null,null,null,-1]
[null,null,null,null,null,-1]
[null,null,null,null,null,-1]
[null,null,null,null,null,-1]
[null,null,null,null,null,-1]
[null,null,null,null,null,-1]
[null,null,null,null,null,-1]
[null,null,null,null,null,-1]
[null,null,null,null,null,-1]
[null,null,null,null,null,-1]
[null,null,null,null,null,-1]
[null,null,null,null,null,-1]
[null,null,null,null,null,{"$f":"IF(COUNT(A36163:E36163)>0,E36163+D36163*10+C36163*100+B36163*1000+A36163*10000,-1)","v":-1}]
[null,null,null,null,null,-1]
[null,null,null,null,null,-1]
[null,null,null,null,null,-1]
[null,null,null,null,null,-1]
[null,null,null,null,null,-1]
[null,null,null,null,null,-1]
[null,null,null,null,null,-1]
[null,null,null,null,null,-1]
[null,null,null,null,null,-1]
[null,null,null,null,null,-1]
[null,null,null,null,null,-1]
[null,null,null,null,null,-1]
[null,null,null,null,null,-1]
[null,null,null,null,null,-1]
[null,null,null,null,null,-1]
[null,null,null,null,null,-1]
[null,null,null,null,null,-1]
[null,null,null,null,null,-1]
[null,null,null,null,null,-1]
[null,null,null,null,null,-1]
[null,null,null,null,null,-1]
[null,null,null,null,null,-1]
[null,null,null,null,null,-1]
[null,null,null,null,null,-1]
[null,null,null,null,null,-1]
[null,null,null,null,null,-1]
[null,null,null,null,null,-1]
[null,null,null,null,null,-1]
[null,null,null,null,null,-1]
[null,null,null,null,null,-1]
[null,null,null,null,null,-1]
[null,null,null,null,null,-1]
[null,null,null,null,null,-1]
[null,null,null,null,null,-1]
[null,null,null,null,null,-1]
[null,null,null,null,null,-1]
[null,null,null,null,null,-1]
[null,null,null,null,null,-1]
[null,null,null,null,null,-1]
[null,null,null,null,null,-1]
[null,null,null,null,null,-1]
[null,null,null,null,null,-1]
[null,null,null,null,null,-1]
[null,null,null,null,null,-1]
[null,null,null,null,null,-1]
[null,null,null,null,null,-1]
[null,null,null,null,null,-1]
[null,null,null,null,null,-1]
[null,null,null,null,null,-1]
[null,null,null,null,null,-1]
[null,null,null,null,null,-1]
[null,null,null,null,null,-1]
[null,null,null,null,null,-1]
[null,null,null,null,null,-1]
[null,null,null,null,null,-1]
[null,null,null,null,null,-1]
[null,null,null,null,null,-1]
[null,null,null,null,null,-1]
[null,null,null,null,null,-1]
[null,null,null,null,null,-1]
[null,null,null,null,null,-1]
[null,null,null,null,null,-1]
[null,null,null,null,null,-1]
[null,null,null,null,null,-1]
[null,null,null,null,null,-1]
[null,null,null,null,null,-1]
[null,null,null,null,null,-1]
[null,null,null,null,null,-1]
[null,null,null,null,null,-1]
[null,null,null,null,null,-1]
[null,null,null,null,null,-1]
[null,null,null,null,null,-1]
[null,null,null,null,null,-1]
[null,null,null,null,null,-1]
[null,null,null,null,null,-1]
[null,null,null,null,null,-1]
[null,null,null,null,null,-1]
[null,null,null,null,null,-1]
[null,null,null,null,null,-1]
[null,null,null,null,null,-1]
[null,null,null,null,null,-1]
[null,null,null,null,null,-1]
[null,null,null,null,null,-1]
[null,null,null,null,null,-1]
[null,null,null,null,null,-1]
[null,null,null,null,null,-1]
[null,null,null,null,null,-1]
[null,null,null,null,null,-1]
[null,null,null,null,null,-1]
[null,null,null,null,null,-1]
[null,null,null,null,null,-1]
[null,null,null,null,null,-1]
[null,null,null,null,null,-1]
[null,null,null,null,null,-1]
[null,null,null,null,null,-1]
[null,null,null,null,null,-1]
[null,null,null,null,null,-1]
[null,null,null,null,null,-1]
[null,null,null,null,null,-1]
[null,null,null,null,null,-1]
[null,null,null,null,null,-1]
[null,null,null,null,null,-1]
[null,null,null,null,null,-1]
[null,null,null,null,null,-1]
[null,null,null,null,null,-1]
[null,null,null,null,null,-1]
[null,null,null,null,null,-1]
[null,null,null,null,null,-1]
[null,null,null,null,null,-1]
[null,null,null,null,null,-1]
[null,null,null,null,null,-1]
[null,null,null,null,null,-1]
[null,null,null,null,null,-1]
[null,null,null,null,null,-1]
[null,null,null,null,null,-1]
[null,null,null,null,null,-1]
[null,null,null,null,null,-1]
[null,null,null,null,null,-1]
[null,null,null,null,null,-1]
[null,null,null,null,null,-1]
[null,null,null,null,null,-1]
[null,null,null,null,null,-1]
[null,null,null,null,null,-1]
[null,null,null,null,null,-1]
[null,null,null,null,null,-1]
[null,null,null,null,null,-1]
[null,null,null,null,null,-1]
[null,null,null,null,null,{"$f":"IF(COUNT(A42371:E42371)>0,E42371+D42371*10+C42371*100+B42371*1000+A42371*10000,-1)","v":-1}]
[null,null,null,null,null,-1]
[null,null,null,null,null,-1]
[null,null,null,null,null,-1]
[null,null,null,null,null,-1]
[null,null,null,null,null,-1]
[null,null,null,null,null,-1]
[null,null,null,null,null,-1]
[null,null,null,null,null,-1]
[null,null,null,null,null,-1]
[null,null,null,null,null,-1]
[null,null,null,null,null,-1]
[null,null,null,null,null,-1]
[null,null,null,null,null,-1]
[null,null,null,null,null,{"$f":"IF(COUNT(A43075:E43075)>0,E43075+D43075*10+C43075*100+B43075*1000+A43075*10000,-1)","v":-1}]
[null,null,null,null,null,-1]
[null,null,null,null,null,-1]
[null,null,null,null,null,-1]
[null,null,null,null,null,-1]
[null,null,null,null,null,-1]
[null,null,null,null,null,-1]
[null,null,null,null,null,-1]
[null,null,null,null,null,-1]
[null,null,null,null,null,-1]
[null,null,null,null,null,-1]
[null,null,null,null,null,-1]
[null,null,null,null,null,-1]
[null,null,null,null,null,-1]
[null,null,null,null,null,-1]
[null,null,null,null,null,-1]
[null,null,null,null,null,-1]
[null,null,null,null,null,-1]
[null,null,null,null,null,-1]
[null,null,null,null,null,-1]
[null,null,null,null,null,-1]
[null,null,null,null,null,-1]
[null,null,null,null,null,-1]
[null,null,null,null,null,-1]
[null,null,null,null,null,-1]
[null,null,null,null,null,-1]
[null,null,null,null,null,-1]
[null,null,null,null,null,-1]
[null,null,null,null,null,-1]
[null,null,null,null,null,-1]
[null,null,null,null,null,-1]
[null,null,null,null,null,-1]
[null,null,null,null,null,-1]
[null,null,null,null,null,-1]
[null,null,null,null,null,-1]
[null,null,null,null,null,-1]
[null,null,null,null,null,{"$f":"IF(COUNT(A44803:E44803)>0,E44803+D44803*10+C44803*100+B44803*1000+A44803*10000,-1)","v":-1}]
[null,null,null,null,null,-1]
[null,null,null,null,null,-1]
[null,null,null,null,null,-1]
[null,null,null,null,null,-1]
[null,null,null,null,null,-1]
[null,null,null,null,null,-1]
[null,null,null,null,null,-1]
[null,null,null,null,null,-1]
[null,null,null,null,null,-1]
[null,null,null,null,null,-1]
[null,null,null,null,null,-1]
[null,null,null,null,null,-1]
[null,null,null,null,null,-1]
[null,null,null,null,null,-1]
[null,null,null,null,null,-1]
[null,null,null,null,null,-1]
[null,null,null,null,null,-1]
[null,null,null,null,null,-1]
[null,null,null,null,null,-1]
[null,null,null,null,null,-1]
[null,null,null,null,null,-1]
[null,null,null,null,null,-1]
[null,null,null,null,null,-1]
[null,null,null,null,null,-1]
[null,null,null,null,null,-1]
[null,null,null,null,null,-1]
[null,null,null,null,null,-1]
[null,null,null,null,null,-1]
[null,null,null,null,null,-1]
[null,null,null,null,null,-1]
[null,null,null,null,null,-1]
[null,null,null,null,null,-1]
[null,null,null,null,null,-1]
[null,null,null,null,null,-1]
[null,null,null,null,null,-1]
[null,null,null,null,null,-1]
[null,null,null,null,null,-1]
[null,null,null,null,null,-1]
[null,null,null,null,null,-1]
[null,null,null,null,null,-1]
[null,null,null,null,null,-1]
[null,null,null,null,null,-1]
[null,null,null,null,null,-1]
[null,null,null,null,null,-1]
[null,null,null,null,null,-1]
[null,null,null,null,null,-1]
[null,null,null,null,null,-1]
[null,null,null,null,null,-1]
[null,null,null,null,null,-1]
[null,null,null,null,null,-1]
[null,null,null,null,null,-1]
[null,null,null,null,null,-1]
[null,null,null,null,null,-1]
[null,null,null,null,null,-1]
[null,null,null,null,null,-1]
[null,null,null,null,null,-1]
[null,null,null,null,null,-1]
[null,null,null,null,null,-1]
[null,null,null,null,null,-1]
[null,null,null,null,null,-1]
[null,null,null,null,null,-1]
[null,null,null,null,null,-1]
[null,null,null,null,null,-1]
[null,null,null,null,null,-1]
[null,null,null,null,null,-1]
[null,null,null,null,null,-1]
[null,null,null,null,null,-1]
[null,null,null,null,null,-1]
[null,null,null,null,null,-1]
[null,null,null,null,null,-1]
[null,null,null,null,null,-1]
[null,null,null,null,null,-1]
[null,null,null,null,null,-1]
[null,null,null,null,null,-1]
[null,null,null,null,null,-1]
[null,null,null,null,null,-1]
[null,null,null,null,null,-1]
[null,null,null,null,null,-1]
[null,null,null,null,null,-1]
[null,null,null,null,null,-1]
[null,null,null,null,null,-1]
[null,null,null,null,null,-1]
[null,null,null,null,null,-1]
[null,null,null,null,null,-1]
[null,null,null,null,null,-1]
[null,null,null,null,null,-1]
[null,null,null,null,null,-1]
[null,null,null,null,null,-1]
[null,null,null,null,null,-1]
[null,null,null,null,null,-1]
[null,null,null,null,null,-1]
[null,null,null,null,null,-1]
[null,null,null,null,null,-1]
[null,null,null,null,null,-1]
[null,null,null,null,null,-1]
[null,null,null,null,null,-1]
[null,null,null,null,null,-1]
[null,null,null,null,null,-1]
[null,null,null,null,null,-1]
[null,null,null,null,null,-1]
[null,null,null,null,null,-1]
[null,null,null,null,null,-1]
[null,null,null,null,null,-1]
[null,null,null,null,null,-1]
[null,null,null,null,null,-1]
[null,null,null,null,null,-1]
[null,null,null,null,null,-1]
[null,null,null,null,null,-1]
[null,null,null,null,null,-1]
[null,null,null,null,null,-1]
[null,null,null,null,null,-1]
[null,null,null,null,null,-1]
[null,null,null,null,null,-1]
[null,null,null,null,null,-1]
[null,null,null,null,null,-1]
[null,null,null,null,null,-1]
[null,null,null,null,null,-1]
[null,null,null,null,null,-1]
[null,null,null,null,null,-1]
[null,null,null,null,null,-1]
[null,null,null,null,null,-1]
[null,null,null,null,null,-1]
[null,null,null,null,null,-1]
[null,null,null,null,null,-1]
[null,null,null,null,null,-1]
[null,null,null,null,null,-1]
[null,null,null,null,null,-1]
[null,null,null,null,null,-1]
[null,null,null,null,null,-1]
[null,null,null,null,null,-1]
[null,null,null,null,null,-1]
[null,null,null,null,null,-1]
[null,null,null,null,null,-1]
[null,null,null,null,null,-1]
[null,null,null,null,null,-1]
[null,null,null,null,null,-1]
[null,null,null,null,null,-1]
[null,null,null,null,null,-1]
[null,null,null,null,null,-1]
[null,null,null,null,null,-1]
[null,null,null,null,null,-1]
[null,null,null,null,null,-1]
[null,null,null,null,null,-1]
[null,null,null,null,null,-1]
[null,null,null,null,null,-1]
[null,null,null,null,null,-1]
[null,null,null,null,null,-1]
[null,null,null,null,null,-1]
[null,null,null,null,null,-1]
[null,null,null,null,null,-1]
[null,null,null,null,null,-1]
[null,null,null,null,null,-1]
[null,null,null,null,null,-1]
[null,null,null,null,null,-1]
[null,null,null,null,null,-1]
[null,null,null,null,null,-1]
[null,null,null,null,null,-1]
[null,null,null,null,null,-1]
[null,null,null,null,null,-1]
[null,null,null,null,null,-1]
[null,null,null,null,null,-1]
[null,null,null,null,null,-1]
[null,null,null,null,null,-1]
[null,null,null,null,null,-1]
[null,null,null,null,null,-1]
[null,null,null,null,null,-1]
[null,null,null,null,null,-1]
[null,null,null,null,null,-1]
[null,null,null,null,null,-1]
[null,null,null,null,null,-1]
[null,null,null,null,null,-1]
[null,null,null,null,null,-1]
[null,null,null,null,null,-1]
[null,null,null,null,null,-1]
[null,null,null,null,null,-1]
[null,null,null,null,null,-1]
[null,null,null,null,null,-1]
[null,null,null,null,null,-1]
[null,null,null,null,null,-1]
[null,null,null,null,null,-1]
[null,null,null,null,null,-1]
[null,null,null,null,null,-1]
[null,null,null,null,null,-1]
[null,null,null,null,null,-1]
[null,null,null,null,null,-1]
[null,null,null,null,null,-1]
[null,null,null,null,null,-1]
[null,null,null,null,null,-1]
[null,null,null,null,null,-1]
[null,null,null,null,null,-1]
[null,null,null,null,null,-1]
[null,null,null,null,null,-1]
[null,null,null,null,null,-1]
[null,null,null,null,null,-1]
[null,null,null,null,null,-1]
[null,null,null,null,null,-1]
[null,null,null,null,null,-1]
[null,null,null,null,null,-1]
[null,null,null,null,null,-1]
[null,null,null,null,null,{"$f":"IF(COUNT(A54595:E54595)>0,E54595+D54595*10+C54595*100+B54595*1000+A54595*10000,-1)","v":-1}]
[null,null,null,null,null,-1]
[null,null,null,null,null,-1]
[null,null,null,null,null,-1]
[null,null,null,null,null,-1]
[null,null,null,null,null,-1]
[null,null,null,null,null,-1]
[null,null,null,null,null,-1]
[null,null,null,null,null,-1]
[null,null,null,null,null,-1]
[null,null,null,null,null,-1]
[null,null,null,null,null,-1]
[null,null,null,null,null,-1]
[null,null,null,null,null,-1]
[null,null,null,null,null,-1]
[null,null,null,null,null,-1]
[null,null,null,null,null,-1]
[null,null,null,null,null,-1]
[null,null,null,null,null,-1]
[null,null,null,null,null,-1]
[null,null,null,null,null,-1]
[null,null,null,null,null,-1]
[null,null,null,null,null,-1]
[null,null,null,null,null,-1]
[null,null,null,null,null,-1]
[null,null,null,null,null,-1]
[null,null,null,null,null,-1]
[null,null,null,null,null,-1]
[null,null,null,null,null,-1]
[null,null,null,null,null,-1]
[null,null,null,null,null,-1]
[null,null,null,null,null,-1]
[null,null,null,null,null,-1]
[null,null,null,null,null,-1]
[null,null,null,null,null,-1]
[null,null,null,null,null,-1]
[null,null,null,null,null,{"$f":"IF(COUNT(A56323:E56323)>0,E56323+D56323*10+C56323*100+B56323*1000+A56323*10000,-1)","v":-1}]
[null,null,null,null,null,-1]
[null,null,null,null,null,-1]
[null,null,null,null,null,-1]
[null,null,null,null,null,-1]
[null,null,null,null,null,-1]
[null,null,null,null,null,-1]
[null,null,null,null,null,-1]
[null,null,null,null,null,-1]
[null,null,null,null,null,-1]
[null,null,null,null,null,-1]
[null,null,null,null,null,-1]
[null,null,null,null,null,-1]
[null,null,null,null,null,-1]
[null,null,null,null,null,-1]
[null,null,null,null,null,-1]
[null,null,null,null,null,-1]
[null,null,null,null,null,-1]
[null,null,null,null,null,-1]
[null,null,null,null,null,-1]
[null,null,null,null,null,-1]
[null,null,null,null,null,-1]
[null,null,null,null,null,-1]
[null,null,null,null,null,-1]
[null,null,null,null,null,-1]
[null,null,null,null,null,-1]
[null,null,null,null,null,-1]
[null,null,null,null,null,-1]
[null,null,null,null,null,-1]
[null,null,null,null,null,-1]
[null,null,null,null,null,-1]
[null,null,null,null,null,-1]
[null,null,null,null,null,-1]
[null,null,null,null,null,-1]
[null,null,null,null,null,-1]
[null,null,null,null,null,-1]
[null,null,null,null,null,-1]
[null,null,null,null,null,-1]
[null,null,null,null,null,-1]
[null,null,null,null,null,-1]
[null,null,null,null,null,-1]
[null,null,null,null,null,-1]
[null,null,null,null,null,-1]
[null,null,null,null,null,-1]
[null,null,null,null,null,-1]
[null,null,null,null,null,-1]
[null,null,null,null,null,-1]
[null,null,null,null,null,-1]
[null,null,null,null,null,-1]
[null,null,null,null,null,-1]
[null,null,null,null,null,-1]
[null,null,null,null,null,-1]
[null,null,null,null,null,-1]
[null,null,null,null,null,-1]
[null,null,null,null,null,-1]
[null,null,null,null,null,-1]
[null,null,null,null,null,-1]
[null,null,null,null,null,-1]
[null,null,null,null,null,-1]
[null,null,null,null,null,-1]
[null,null,null,null,null,-1]
[null,null,null,null,null,-1]
[null,null,null,null,null,-1]
[null,null,null,null,null,-1]
[null,null,null,null,null,-1]
[null,null,null,null,null,-1]
[null,null,null,null,null,-1]
[null,null,null,null,null,-1]
[null,null,null,null,null,-1]
[null,null,null,null,null,-1]
[null,null,null,null,null,-1]
[null,null,null,null,null,-1]
[null,null,null,null,null,-1]
[null,null,null,null,null,-1]
[null,null,null,null,null,-1]
[null,null,null,null,null,-1]
[null,null,null,null,null,-1]
[null,null,null,null,null,-1]
[null,null,null,null,null,-1]
[null,null,null,null,null,-1]
[null,null,null,null,null,-1]
[null,null,null,null,null,-1]
[null,null,null,null,null,-1]
[null,null,null,null,null,-1]
[null,null,null,null,null,-1]
[null,null,null,null,null,-1]
[null,null,null,null,null,-1]
[null,null,null,null,null,-1]
[null,null,null,null,null,-1]
[null,null,null,null,null,-1]
[null,null,null,null,null,-1]
[null,null,null,null,null,-1]
[null,null,null,null,null,-1]
[null,null,null,null,null,-1]
[null,null,null,null,null,-1]
[null,null,null,null,null,-1]
[null,null,null,null,null,-1]
[null,null,null,null,null,-1]
[null,null,null,null,null,{"$f":"IF(COUNT(A61123:E61123)>0,E61123+D61123*10+C61123*100+B61123*1000+A61123*10000,-1)","v":-1}]
[null,null,null,null,null,-1]
[null,null,null,null,null,-1]
[null,null,null,null,null,-1]
[null,null,null,null,null,-1]
[null,null,null,null,null,-1]
[null,null,null,null,null,-1]
[null,null,null,null,null,-1]
[null,null,null,null,null,-1]
[null,null,null,null,null,-1]
[null,null,null,null,null,-1]
[null,null,null,null,null,-1]
[null,null,null,null,null,-1]
[null,null,null,null,null,-1]
[null,null,null,null,null,-1]
[null,null,null,null,null,-1]
[null,null,null,null,null,-1]
[null,null,null,null,null,-1]
[null,null,null,null,null,-1]
[null,null,null,null,null,-1]
[null,null,null,null,null,-1]
[null,null,null,null,null,-1]
[null,null,null,null,null,-1]
[null,null,null,null,null,-1]
[null,null,null,null,null,-1]
[null,null,null,null,null,-1]
[null,null,null,null,null,-1]
[null,null,null,null,null,-1]
[null,null,null,null,null,-1]
[null,null,null,null,null,-1]
[null,null,null,null,null,-1]
[null,null,null,null,null,-1]
[null,null,null,null,null,-1]
[null,null,null,null,null,-1]
[null,null,null,null,null,-1]
[null,null,null,null,null,-1]
[null,null,null,null,null,-1]
[null,null,null,null,null,-1]
[null,null,null,null,null,-1]
[null,null,null,null,null,-1]
[null,null,null,null,null,-1]
[null,null,null,null,null,-1]
[null,null,null,null,null,-1]
[null,null,null,null,null,-1]
[null,null,null,null,null,-1]
[null,null,null,null,null,-1]
[null,null,null,null,null,-1]
[null,null,null,null,null,-1]
[null,null,null,null,null,-1]
[null,null,null,null,null,-1]
[null,null,null,null,null,-1]
[null,null,null,null,null,-1]
[null,null,null,null,null,-1]
[null,null,null,null,null,-1]
[null,null,null,null,null,-1]
[null,null,null,null,null,-1]
[null,null,null,null,null,-1]
[null,null,null,null,null,-1]
[null,null,null,null,null,-1]
[null,null,null,null,null,-1]
[null,null,null,null,null,-1]
[null,null,null,null,null,-1]
[null,null,null,null,null,-1]
[null,null,null,null,null,-1]
[null,null,null,null,null,-1]
[null,null,null,null,null,-1]
[null,null,null,null,null,-1]
[null,null,null,null,null,-1]
[null,null,null,null,null,-1]
[null,null,null,null,null,-1]
[null,null,null,null,null,-1]
[null,null,null,null,null,-1]
[null,null,null,null,null,-1]
[null,null,null,null,null,-1]
[null,null,null,null,null,-1]
[null,null,null,null,null,-1]
[null,null,null,null,null,-1]
[null,null,null,null,null,-1]
[null,null,null,null,null,-1]
[null,null,null,null,null,-1]
[null,null,null,null,null,-1]
[null,null,null,null,null,-1]
[null,null,null,null,null,-1]
[null,null,null,null,null,-1]
[null,null,null,null,null,-1]
[null,null,null,null,null,-1]
[null,null,null,null,null,-1]
[null,null,null,null,null,-1]
[null,null,null,null,null,-1]
[null,null,null,null,null,-1]
[null,null,null,null,null,-1]
[null,null,null,null,null,-1]
[null,null,null,null,null,-1]
[null,null,null,null,null,-1]
[null,null,null,null,null,-1]
[null,null,null,null,null,-1]
[null,null,null,null,null,-1]
[null,null,null,null,null,-1]
[null,null,null,null,null,-1]
[null,null,null,null,null,-1]
[null,null,null,null,null,-1]
[null,null,null,null,null,-1]
[null,null,null,null,null,-1]
[null,null,null,null,null,-1]
[null,null,null,null,null,-1]
[null,null,null,null,null,-1]
[null,null,null,null,null,-1]
[null,null,null,null,null,-1]
[null,null,null,null,null,-1]
[null,null,null,null,null,-1]
[null,null,null,null,null,-1]
[null,null,null,null,null,-1]
[null,null,null,null,null,-1]
[null,null,null,null,null,-1]
[null,null,null,null,null,-1]
[null,null,null,null,null,-1]
[null,null,null,null,null,-1]
[null,null,null,null,null,-1]
[null,null,null,null,null,-1]
[null,null,null,null,null,-1]
[null,null,null,null,null,-1]
[null,null,null,null,null,-1]
[null,null,null,null,null,-1]
[null,null,null,null,null,-1]
[null,null,null,null,null,-1]
[null,null,null,null,null,-1]
[null,null,null,null,null,-1]
[null,null,null,null,null,-1]
[null,null,null,null,null,{"$f":"IF(COUNT(A67331:E67331)>0,E67331+D67331*10+C67331*100+B67331*1000+A67331*10000,-1)","v":-1}]
[null,null,null,null,null,-1]
[null,null,null,null,null,-1]
[null,null,null,null,null,-1]
[null,null,null,null,null,-1]
[null,null,null,null,null,-1]
[null,null,null,null,null,-1]
[null,null,null,null,null,-1]
[null,null,null,null,null,-1]
[null,null,null,null,null,-1]
[null,null,null,null,null,{"$f":"IF(COUNT(A67843:E67843)>0,E67843+D67843*10+C67843*100+B67843*1000+A67843*10000,-1)","v":-1}]
[null,null,null,null,null,-1]
[null,null,null,null,null,-1]
[null,null,null,null,null,-1]
[null,null,null,null,null,-1]
[null,null,null,null,null,-1]
[null,null,null,null,null,-1]
[null,null,null,null,null,-1]
[null,null,null,null,null,-1]
[null,null,null,null,null,-1]
[null,null,null,null,null,-1]
[null,null,null,null,null,-1]
[null,null,null,null,null,-1]
[null,null,null,null,null,-1]
[null,null,null,null,null,-1]
[null,null,null,null,null,-1]
[null,null,null,null,null,-1]
[null,null,null,null,null,-1]
[null,null,null,null,null,-1]
[null,null,null,null,null,-1]
[null,null,null,null,null,-1]
[null,null,null,null,null,-1]
[null,null,null,null,null,-1]
[null,null,null,null,null,-1]
[null,null,null,null,null,-1]
[null,null,null,null,null,-1]
[null,null,null,null,null,-1]
[null,null,null,null,null,-1]
[null,null,null,null,null,-1]
[null,null,null,null,null,-1]
[null,null,null,null,null,-1]
[null,null,null,null,null,-1]
[null,null,null,null,null,-1]
[null,null,null,null,null,-1]
[null,null,null,null,null,-1]
[null,null,null,null,null,-1]
[null,null,null,null,null,{"$f":"IF(COUNT(A69571:E69571)>0,E69571+D69571*10+C69571*100+B69571*1000+A69571*10000,-1)","v":-1}]
[null,null,null,null,null,-1]
[null,null,null,null,null,-1]
[null,null,null,null,null,-1]
[null,null,null,null,null,-1]
[null,null,null,null,null,-1]
[null,null,null,null,null,-1]
[null,null,null,null,null,-1]
[null,null,null,null,null,-1]
[null,null,null,null,null,-1]
[null,null,null,null,null,-1]
[null,null,null,null,null,-1]
[null,null,null,null,null,-1]
[null,null,null,null,null,-1]
[null,null,null,null,null,-1]
[null,null,null,null,null,-1]
[null,null,null,null,null,-1]
[null,null,null,null,null,-1]
[null,null,null,null,null,{"$f":"IF(COUNT(A70467:E70467)>0,E70467+D70467*10+C70467*100+B70467*1000+A70467*10000,-1)","v":-1}]
[null,null,null,null,null,-1]
[null,null,null,null,null,-1]
[null,null,null,null,null,-1]
[null,null,null,null,null,-1]
[null,null,null,null,null,-1]
[null,null,null,null,null,-1]
[null,null,null,null,null,-1]
[null,null,null,null,null,-1]
[null,null,null,null,null,-1]
[null,null,null,null,null,-1]
[null,null,null,null,null,-1]
[null,null,null,null,null,-1]
[null,null,null,null,null,-1]
[null,null,null,null,null,-1]
[null,null,null,null,null,-1]
[null,null,null,null,null,-1]
[null,null,null,null,null,-1]
[null,null,null,null,null,-1]
[null,null,null,null,null,-1]
[null,null,null,null,null,-1]
[null,null,null,null,null,-1]
[null,null,null,null,null,-1]
[null,null,null,null,null,-1]
[null,null,null,null,null,-1]
[null,null,null,null,null,-1]
[null,null,null,null,null,-1]
[null,null,null,null,null,-1]
[null,null,null,null,null,-1]
[null,null,null,null,null,-1]
[null,null,null,null,null,-1]
[null,null,null,null,null,-1]
[null,null,null,null,null,-1]
[null,null,null,null,null,-1]
[null,null,null,null,null,-1]
[null,null,null,null,null,-1]
[null,null,null,null,null,-1]
[null,null,null,null,null,-1]
[null,null,null,null,null,-1]
[null,null,null,null,null,-1]
[null,null,null,null,null,-1]
[null,null,null,null,null,-1]
[null,null,null,null,null,-1]
[null,null,null,null,null,-1]
[null,null,null,null,null,-1]
[null,null,null,null,null,-1]
[null,null,null,null,null,-1]
[null,null,null,null,null,-1]
[null,null,null,null,null,-1]
[null,null,null,null,null,-1]
[null,null,null,null,null,-1]
[null,null,null,null,null,-1]
[null,null,null,null,null,-1]
[null,null,null,null,null,-1]
[null,null,null,null,null,-1]
[null,null,null,null,null,-1]
[null,null,null,null,null,-1]
[null,null,null,null,null,-1]
[null,null,null,null,null,-1]
[null,null,null,null,null,-1]
[null,null,null,null,null,-1]
[null,null,null,null,null,-1]
[null,null,null,null,null,-1]
[null,null,null,null,null,-1]
[null,null,null,null,null,-1]
[null,null,null,null,null,-1]
[null,null,null,null,null,-1]
[null,null,null,null,null,-1]
[null,null,null,null,null,-1]
[null,null,null,null,null,-1]
[null,null,null,null,null,-1]
[null,null,null,null,null,-1]
[null,null,null,null,null,-1]
[null,null,null,null,null,-1]
[null,null,null,null,null,-1]
[null,null,null,null,null,-1]
[null,null,null,null,null,-1]
[null,null,null,null,null,-1]
[null,null,null,null,null,-1]
[null,null,null,null,null,-1]
[null,null,null,null,null,-1]
[null,null,null,null,null,-1]
[null,null,null,null,null,-1]
[null,null,null,null,null,-1]
[null,null,null,null,null,-1]
[null,null,null,null,null,-1]
[null,null,null,null,null,-1]
[null,null,null,null,null,-1]
[null,null,null,null,null,-1]
[null,null,null,null,null,-1]
[null,null,null,null,null,-1]
[null,null,null,null,null,-1]
[null,null,null,null,null,-1]
[null,null,null,null,null,-1]
[null,null,null,null,null,-1]
[null,null,null,null,null,-1]
[null,null,null,null,null,-1]
[null,null,null,null,null,-1]
[null,null,null,null,null,-1]
[null,null,null,null,null,-1]
[null,null,null,null,null,-1]
[null,null,null,null,null,-1]
[null,null,null,null,null,-1]
[null,null,null,null,null,-1]
[null,null,null,null,null,-1]
[null,null,null,null,null,-1]
[null,null,null,null,null,-1]
[null,null,null,null,null,-1]
[null,null,null,null,null,-1]
[null,null,null,null,null,-1]
[null,null,null,null,null,-1]
[null,null,null,null,null,-1]
[null,null,null,null,null,-1]
[null,null,null,null,null,-1]
[null,null,null,null,null,-1]
[null,null,null,null,null,-1]
[null,null,null,null,null,-1]
[null,null,null,null,null,-1]
[null,null,null,null,null,-1]
[null,null,null,null,null,-1]
[null,null,null,null,null,-1]
[null,null,null,null,null,-1]
[null,null,null,null,null,-1]
[null,null,null,null,null,-1]
[null,null,null,null,null,-1]
[null,null,null,null,null,-1]
[null,null,null,null,null,-1]
[null,null,null,null,null,-1]
[null,null,null,null,null,-1]
[null,null,null,null,null,-1]
[null,null,null,null,null,-1]
[null,null,null,null,null,-1]
[null,null,null,null,null,-1]
[null,null,null,null,null,-1]
[null,null,null,null,null,-1]
[null,null,null,null,null,-1]
[null,null,null,null,null,-1]
[null,null,null,null,null,-1]
[null,null,null,null,null,-1]
[null,null,null,null,null,-1]
[null,null,null,null,null,-1]
[null,null,null,null,null,-1]
[null,null,null,null,null,-1]
[null,null,null,null,null,-1]
[null,null,null,null,null,-1]
[null,null,null,null,null,-1]
[null,null,null,null,null,-1]
[null,null,null,null,null,-1]
[null,null,null,null,null,-1]
[null,null,null,null,null,-1]
[null,null,null,null,null,-1]
[null,null,null,null,null,-1]
[null,null,null,null,null,-1]
[null,null,null,null,null,-1]
[null,null,null,null,null,-1]
[null,null,null,null,null,-1]
[null,null,null,null,null,-1]
[null,null,null,null,null,-1]
[null,null,null,null,null,-1]
[null,null,null,null,null,-1]
[null,null,null,null,null,-1]
[null,null,null,null,null,-1]
[null,null,null,null,null,-1]
[null,null,null,null,null,-1]
[null,null,null,null,null,-1]
[null,null,null,null,null,-1]
[null,null,null,null,null,-1]
[null,null,null,null,null,-1]
[null,null,null,null,null,-1]
[null,null,null,null,null,-1]
[null,null,null,null,null,-1]
[null,null,null,null,null,-1]
[null,null,null,null,null,-1]
[null,null,null,null,null,-1]
[null,null,null,null,null,-1]
[null,null,null,null,null,-1]
[null,null,null,null,null,-1]
[null,null,null,null,null,-1]
[null,null,null,null,null,-1]
[null,null,null,null,null,-1]
[null,null,null,null,null,-1]
[null,null,null,null,null,-1]
[null,null,null,null,null,{"$f":"IF(COUNT(A79363:E79363)>0,E79363+D79363*10+C79363*100+B79363*1000+A79363*10000,-1)","v":-1}]
[null,null,null,null,null,-1]
[null,null,null,null,null,-1]
[null,null,null,null,null,-1]
[null,null,null,null,null,-1]
[null,null,null,null,null,-1]
[null,null,null,null,null,-1]
[null,null,null,null,null,-1]
[null,null,null,null,null,-1]
[null,null,null,null,null,-1]
[null,null,null,null,null,-1]
[null,null,null,null,null,-1]
[null,null,null,null,null,-1]
[null,null,null,null,null,-1]
[null,null,null,null,null,-1]
[null,null,null,null,null,-1]
[null,null,null,null,null,-1]
[null,null,null,null,null,-1]
[null,null,null,null,null,-1]
[null,null,null,null,null,-1]
[null,null,null,null,null,-1]
[null,null,null,null,null,-1]
[null,null,null,null,null,-1]
[null,null,null,null,null,-1]
[null,null,null,null,null,-1]
[null,null,null,null,null,-1]
[null,null,null,null,null,-1]
[null,null,null,null,null,-1]
[null,null,null,null,null,-1]
[null,null,null,null,null,-1]
[null,null,null,null,null,-1]
[null,null,null,null,null,-1]
[null,null,null,null,null,-1]
[null,null,null,null,null,-1]
[null,null,null,null,null,-1]
[null,null,null,null,null,-1]
[null,null,null,null,null,{"$f":"IF(COUNT(A81091:E81091)>0,E81091+D81091*10+C81091*100+B81091*1000+A81091*10000,-1)","v":-1}]
[null,null,null,null,null,-1]
[null,null,null,null,null,-1]
[null,null,null,null,null,-1]
[null,null,null,null,null,-1]
[null,null,null,null,null,-1]
[null,null,null,null,null,-1]
[null,null,null,null,null,-1]
[null,null,null,null,null,-1]
[null,null,null,null,null,-1]
[null,null,null,null,null,-1]
[null,null,null,null,null,-1]
[null,null,null,null,null,-1]
[null,null,null,null,null,-1]
[null,null,null,null,null,-1]
[null,null,null,null,null,-1]
[null,null,null,null,null,-1]
[null,null,null,null,null,-1]
[null,null,null,null,null,-1]
[null,null,null,null,null,-1]
[null,null,null,null,null,-1]
[null,null,null,null,null,-1]
[null,null,null,null,null,-1]
[null,null,null,null,null,-1]
[null,null,null,null,null,-1]
[null,null,null,null,null,-1]
[null,null,null,null,null,-1]
[null,null,null,null,null,-1]
[null,null,null,null,null,-1]
[null,null,null,null,null,-1]
[null,null,null,null,null,-1]
[null,null,null,null,null,-1]
[null,null,null,null,null,-1]
[null,null,null,null,null,-1]
[null,null,null,null,null,-1]
[null,null,null,null,null,-1]
[null,null,null,null,null,-1]
[null,null,null,null,null,-1]
[null,null,null,null,null,-1]
[null,null,null,null,null,-1]
[null,null,null,null,null,-1]
[null,null,null,null,null,-1]
[null,null,null,null,null,-1]
[null,null,null,null,null,-1]
[null,null,null,null,null,-1]
[null,null,null,null,null,-1]
[null,null,null,null,null,-1]
[null,null,null,null,null,-1]
[null,null,null,null,null,-1]
[null,null,null,null,null,-1]
[null,null,null,null,null,-1]
[null,null,null,null,null,-1]
[null,null,null,null,null,-1]
[null,null,null,null,null,-1]
[null,null,null,null,null,-1]
[null,null,null,null,null,-1]
[null,null,null,null,null,-1]
[null,null,null,null,null,-1]
[null,null,null,null,null,-1]
[null,null,null,null,null,-1]
[null,null,null,null,null,-1]
[null,null,null,null,null,-1]
[null,null,null,null,null,-1]
[null,null,null,null,null,-1]
[null,null,null,null,null,-1]
[null,null,null,null,null,-1]
[null,null,null,null,null,-1]
[null,null,null,null,null,-1]
[null,null,null,null,null,-1]
[null,null,null,null,null,-1]
[null,null,null,null,null,-1]
[null,null,null,null,null,-1]
[null,null,null,null,null,-1]
[null,null,null,null,null,-1]
[null,null,null,null,null,-1]
[null,null,null,null,null,-1]
[null,null,null,null,null,-1]
[null,null,null,null,null,-1]
[null,null,null,null,null,-1]
[null,null,null,null,null,-1]
[null,null,null,null,null,-1]
[null,null,null,null,null,-1]
[null,null,null,null,null,-1]
[null,null,null,null,null,-1]
[null,null,null,null,null,-1]
[null,null,null,null,null,-1]
[null,null,null,null,null,-1]
[null,null,null,null,null,-1]
[null,null,null,null,null,-1]
[null,null,null,null,null,-1]
[null,null,null,null,null,-1]
[null,null,null,null,null,-1]
[null,null,null,null,null,-1]
[null,null,null,null,null,-1]
[null,null,null,null,null,-1]
[null,null,null,null,null,-1]
[null,null,null,null,null,-1]
[null,null,null,null,null,-1]
[null,null,null,null,null,-1]
[null,null,null,null,null,-1]
[null,null,null,null,null,-1]
[null,null,null,null,null,-1]
[null,null,null,null,null,-1]
[null,null,null,null,null,-1]
[null,null,null,null,null,-1]
[null,null,null,null,null,-1]
[null,null,null,null,null,-1]
[null,null,null,null,null,-1]
[null,null,null,null,null,-1]
[null,null,null,null,null,-1]
[null,null,null,null,null,-1]
[null,null,null,null,null,-1]
[null,null,null,null,null,-1]
[null,null,null,null,null,-1]
[null,null,null,null,null,-1]
[null,null,null,null,null,-1]
[null,null,null,null,null,-1]
[null,null,null,null,null,-1]
[null,null,null,null,null,-1]
[null,null,null,null,null,-1]
[null,null,null,null,null,-1]
[null,null,null,null,null,-1]
[null,null,null,null,null,-1]
[null,null,null,null,null,-1]
[null,null,null,null,null,-1]
[null,null,null,null,null,-1]
[null,null,null,null,null,-1]
[null,null,null,null,null,-1]
[null,null,null,null,null,-1]
[null,null,null,null,null,-1]
[null,null,null,null,null,-1]
[null,null,null,null,null,-1]
[null,null,null,null,null,-1]
[null,null,null,null,null,-1]
[null,null,null,null,null,-1]
[null,null,null,null,null,-1]
[null,null,null,null,null,-1]
[null,null,null,null,null,-1]
[null,null,null,null,null,-1]
[null,null,null,null,null,-1]
[null,null,null,null,null,-1]
[null,null,null,null,null,-1]
[null,null,null,null,null,-1]
[null,null,null,null,null,-1]
[null,null,null,null,null,-1]
[null,null,null,null,null,-1]
[null,null,null,null,null,-1]
[null,null,null,null,null,-1]
[null,null,null,null,null,-1]
[null,null,null,null,null,-1]
[null,null,null,null,null,-1]
[null,null,null,null,null,-1]
[null,null,null,null,null,-1]
[null,null,null,null,null,-1]
[null,null,null,null,null,-1]
[null,null,null,null,null,-1]
[null,null,null,null,null,-1]
[null,null,null,null,null,-1]
[null,null,null,null,null,-1]
[null,null,null,null,null,-1]
[null,null,null,null,null,-1]
[null,null,null,null,null,-1]
[null,null,null,null,null,-1]
[null,null,null,null,null,-1]
[null,null,null,null,null,-1]
[null,null,null,null,null,-1]
[null,null,null,null,null,-1]
[null,null,null,null,null,-1]
[null,null,null,null,null,-1]
[null,null,null,null,null,-1]
[null,null,null,null,null,-1]
[null,null,null,null,null,-1]
[null,null,null,null,null,-1]
[null,null,null,null,null,-1]
[null,null,null,null,null,-1]
[null,null,null,null,null,-1]
[null,null,null,null,null,-1]
[null,null,null,null,null,-1]
[null,null,null,null,null,-1]
[null,null,null,null,null,-1]
[null,null,null,null,null,-1]
[null,null,null,null,null,-1]
[null,null,null,null,null,-1]
[null,null,null,null,null,-1]
[null,null,null,null,null,-1]
[null,null,null,null,null,-1]
[null,null,null,null,null,-1]
[null,null,null,null,null,-1]
[null,null,null,null,null,-1]
[null,null,null,null,null,-1]
[null,null,null,null,null,-1]
[null,null,null,null,null,-1]
[null,null,null,null,null,-1]
[null,null,null,null,null,-1]
[null,null,null,null,null,-1]
[null,null,null,null,null,-1]
[null,null,null,null,null,-1]
[null,null,null,null,null,-1]
[null,null,null,null,null,-1]
[null,null,null,null,null,-1]
[null,null,null,null,null,-1]
[null,null,null,null,null,-1]
[null,null,null,null,null,-1]
[null,null,null,null,null,-1]
[null,null,null,null,null,-1]
[null,null,null,null,null,-1]
[null,null,null,null,null,-1]
[null,null,null,null,null,-1]
[null,null,null,null,null,-1]
[null,null,null,null,null,-1]
[null,null,null,null,null,-1]
[null,null,null,null,null,-1]
[null,null,null,null,null,-1]
[null,null,null,null,null,-1]
[null,null,null,null,null,-1]
[null,null,null,null,null,-1]
[null,null,null,null,null,-1]
[null,null,null,null,null,-1]
[null,null,null,null,null,-1]
[null,null,null,null,null,-1]
[null,null,null,null,null,-1]
[null,null,null,null,null,-1]
[null,null,null,null,null,-1]
[null,null,null,null,null,-1]
[null,null,null,null,null,-1]
[null,null,null,null,null,-1]
[null,null,null,null,null,-1]
[null,null,null,null,null,-1]
[null,null,null,null,null,-1]
[null,null,null,null,null,-1]
[null,null,null,null,null,-1]
[null,null,null,null,null,-1]
[null,null,null,null,null,-1]
[null,null,null,null,null,-1]
[null,null,null,null,null,-1]
[null,null,null,null,null,-1]
[null,null,null,null,null,{"$f":"IF(COUNT(A92611:E92611)>0,E92611+D92611*10+C92611*100+B92611*1000+A92611*10000,-1)","v":-1}]
[null,null,null,null,null,-1]
[null,null,null,null,null,-1]
[null,null,null,null,null,-1]
[null,null,null,null,null,-1]
[null,null,null,null,null,-1]
[null,null,null,null,null,-1]
[null,null,null,null,null,-1]
[null,null,null,null,null,-1]
[null,null,null,null,null,-1]
[null,null,null,null,null,-1]
[null,null,null,null,null,-1]
[null,null,null,null,null,-1]
[null,null,null,null,null,-1]
[null,null,null,null,null,-1]
[null,null,null,null,null,-1]
[null,null,null,null,null,-1]
[null,null,null,null,null,-1]
[null,null,null,null,null,-1]
[null,null,null,null,null,-1]
[null,null,null,null,null,-1]
[null,null,null,null,null,-1]
[null,null,null,null,null,-1]
[null,null,null,null,null,-1]
[null,null,null,null,null,-1]
[null,null,null,null,null,-1]
[null,null,null,null,null,-1]
[null,null,null,null,null,-1]
[null,null,null,null,null,-1]
[null,null,null,null,null,-1]
[null,null,null,null,null,-1]
[null,null,null,null,null,-1]
[null,null,null,null,null,-1]
[null,null,null,null,null,-1]
[null,null,null,null,null,-1]
[null,null,null,null,null,-1]
[null,null,null,null,null,{"$f":"IF(COUNT(A94339:E94339)>0,E94339+D94339*10+C94339*100+B94339*1000+A94339*10000,-1)","v":-1}]
[null,null,null,null,null,-1]
[null,null,null,null,null,-1]
[null,null,null,null,null,-1]
[null,null,null,null,null,-1]
[null,null,null,null,null,-1]
[null,null,null,null,null,-1]
[null,null,null,null,null,-1]
[null,null,null,null,null,-1]
[null,null,null,null,null,-1]
[null,null,null,null,null,-1]
[null,null,null,null,null,-1]
[null,null,null,null,null,-1]
[null,null,null,null,null,-1]
[null,null,null,null,null,-1]
[null,null,null,null,null,-1]
[null,null,null,null,null,-1]
[null,null,null,null,null,-1]
[null,null,null,null,null,-1]
[null,null,null,null,null,-1]
[null,null,null,null,null,-1]
[null,null,null,null,null,-1]
[null,null,null,null,null,{"$f":"IF(COUNT(A95427:E95427)>0,E95427+D95427*10+C95427*100+B95427*1000+A95427*10000,-1)","v":-1}]
[null,null,null,null,null,-1]
[null,null,null,null,null,-1]
[null,null,null,null,null,-1]
[null,null,null,null,null,-1]
[null,null,null,null,null,-1]
[null,null,null,null,null,-1]
[null,null,null,null,null,-1]
[null,null,null,null,null,-1]
[null,null,null,null,null,-1]
[null,null,null,null,null,-1]
[null,null,null,null,null,-1]
[null,null,null,null,null,-1]
[null,null,null,null,null,-1]
[null,null,null,null,null,-1]
[null,null,null,null,null,-1]
[null,null,null,null,null,-1]
[null,null,null,null,null,-1]
[null,null,null,null,null,-1]
[null,null,null,null,null,-1]
[null,null,null,null,null,-1]
[null,null,null,null,null,-1]
[null,null,null,null,null,-1]
[null,null,null,null,null,-1]
[null,null,null,null,null,-1]
[null,null,null,null,null,-1]
[null,null,null,null,null,-1]
[null,null,null,null,null,-1]
[null,null,null,null,null,-1]
[null,null,null,null,null,-1]
[null,null,null,null,null,-1]
[null,null,null,null,null,-1]
[null,null,null,null,null,-1]
[null,null,null,null,null,-1]
[null,null,null,null,null,-1]
[null,null,null,null,null,-1]
[null,null,null,null,null,-1]
[null,null,null,null,null,-1]
[null,null,null,null,null,-1]
[null,null,null,null,null,-1]
[null,null,null,null,null,-1]
[null,null,null,null,null,-1]
[null,null,null,null,null,-1]
[null,null,null,null,null,-1]
[null,null,null,null,null,-1]
[null,null,null,null,null,-1]
[null,null,null,null,null,-1]
[null,null,null,null,null,-1]
[null,null,null,null,null,-1]
[null,null,null,null,null,-1]
[null,null,null,null,null,-1]
[null,null,null,null,null,-1]
[null,null,null,null,null,-1]
[null,null,null,null,null,-1]
[null,null,null,null,null,-1]
[null,null,null,null,null,-1]
[null,null,null,null,null,-1]
[null,null,null,null,null,-1]
[null,null,null,null,null,-1]
[null,null,null,null,null,-1]
[null,null,null,null,null,-1]
[null,null,null,null,null,-1]
[null,null,null,null,null,-1]
[null,null,null,null,null,-1]
[null,null,null,null,null,{"$f":"IF(COUNT(A98563:E98563)>0,E98563+D98563*10+C98563*100+B98563*1000+A98563*10000,-1)","v":-1}]
[null,null,null,null,null,-1]
[null,null,null,null,null,-1]
[null,null,null,null,null,-1]
[null,null,null,null,null,-1]
[null,null,null,null,null,-1]
[null,null,null,null,null,-1]
[null,null,null,null,null,-1]
[null,null,null,null,null,-1]
[null,null,null,null,null,-1]
[null,null,null,null,null,-1]
[null,null,null,null,null,-1]
[null,null,null,null,null,-1]
[null,null,null,null,null,-1]
[null,null,null,null,null,-1]
[null,null,null,null,null,-1]
[null,null,null,null,null,-1]
[null,null,null,null,null,-1]
[null,null,null,null,null,-1]
[null,null,null,null,null,-1]
[null,null,null,null,null,-1]
[null,null,null,null,null,-1]
[null,null,null,null,null,-1]
[null,null,null,null,null,-1]
[null,null,null,null,null,-1]
[null,null,null,null,null,-1]
[null,null,null,null,null,-1]
[null,null,null,null,null,-1]
[null,null,null,null,null,-1]
[null,null,null,null,null,-1]
[null,null,null,null,null,-1]
[null,null,null,null,null,-1]
[null,null,null,null,null,-1]
[null,null,null,null,null,-1]
[null,null,null,null,null,-1]
[null,null,null,null,null,-1]
[null,null,null,null,null,-1]
[null,null,null,null,null,-1]
[null,null,null,null,null,-1]
[null,null,null,null,null,-1]
[null,null,null,null,null,-1]
[null,null,null,null,null,-1]
[null,null,null,null,null,{"$f":"IF(COUNT(A99523:E99523)>0,E99523+D99523*10+C99523*100+B99523*1000+A99523*10000,-1)","v":-1}]
[null,null,null,null,null,-1]
[null,null,null,null,null,-1]
[null,null,null,null,null,-1]
[null,null,null,null,null,-1]
[null,null,null,null,null,-1]
[null,null,null,null,null,-1]
[null,null,null,null,null,-1]
[null,null,null,null,null,-1]
[null,null,null,null,null,-1]
[null,null,null,null,null,-1]
[null,null,null,null,null,-1]
[null,null,null,null,null,-1]
[null,null,null,null,null,-1]
[null,null,null,null,null,-1]
[null,null,null,null,null,-1]
[null,null,null,null,null,-1]
[null,null,null,null,null,-1]
[null,null,null,null,null,-1]
[null,null,null,null,null,-1]
[null,null,null,null,null,-1]
[null,null,null,null,null,-1]
[null,null,null,null,null,-1]
[null,null,null,null,null,-1]
[null,null,null,null,null,-1]
[null,null,null,null,null,-1]
[null,null,null,null,null,-1]
[null,null,null,null,null,-1]
[null,null,null,null,null,-1]
[null,null,null,null,null,-1]
[null,null,null,null,null,-1]
[null,null,null,null,null,-1]
[null,null,null,null,null,-1]
[null,null,null,null,null,-1]
[null,null,null,null,null,-1]
[null,null,null,null,null,-1]
[null,null,null,null,null,-1]
[null,null,null,null,null,-1]
[null,null,null,null,null,-1]
[null,null,null,null,null,-1]
[null,null,null,null,null,-1]
[null,null,null,null,null,-1]
[null,null,null,null,null,-1]
[null,null,null,null,null,-1]
[null,null,null,null,null,-1]
[null,null,null,null,null,-1]
[null,null,null,null,null,-1]
[null,null,null,null,null,-1]
[null,null,null,null,null,-1]
[null,null,null,null,null,-1]
[null,null,null,null,null,-1]
[null,null,null,null,null,-1]
[null,null,null,null,null,-1]
[null,null,null,null,null,-1]
[null,null,null,null,null,-1]
[null,null,null,null,null,-1]
[null,null,null,null,null,-1]
[null,null,null,null,null,-1]
[null,null,null,null,null,-1]
[null,null,null,null,null,-1]
[null,null,null,null,null,-1]
[null,null,null,null,null,-1]
[null,null,null,null,null,-1]
[null,null,null,null,null,-1]
[null,null,null,null,null,{"$f":"IF(COUNT(A99587:E99587)>0,E99587+D99587*10+C99587*100+B99587*1000+A99587*10000,-1)","v":-1}]
[null,null,null,null,null,-1]
[null,null,null,null,null,-1]
[null,null,null,null,null,-1]
[null,null,null,null,null,-1]
[null,null,null,null,null,-1]
[null,null,null,null,null,-1]
[null,null,null,null,null,-1]
[null,null,null,null,null,-1]
[null,null,null,null,null,-1]
[null,null,null,null,null,-1]
[null,null,null,null,null,-1]
[null,null,null,null,null,-1]
[null,null,null,null,null,-1]
[null,null,null,null,null,-1]
[null,null,null,null,null,-1]
[null,null,null,null,null,-1]
[null,null,null,null,null,-1]
[null,null,null,null,null,-1]
[null,null,null,null,null,-1]
[null,null,null,null,null,-1]
[null,null,null,null,null,-1]
[null,null,null,null,null,-1]
[null,null,null,null,null,-1]
[null,null,null,null,null,-1]
[null,null,null,null,null,-1]
[null,null,null,null,null,-1]
[null,null,null,null,null,-1]
[null,null,null,null,null,-1]
[null,null,null,null,null,-1]
[null,null,null,null,null,-1]
[null,null,null,null,null,-1]
[null,null,null,null,null,-1]
[null,null,null,null,null,-1]
[null,null,null,null,null,-1]
[null,null,null,null,null,-1]
[null,null,null,null,null,-1]
[null,null,null,null,null,-1]
[null,null,null,null,null,-1]
[null,null,null,null,null,-1]
[null,null,null,null,null,-1]
[null,null,null,null,null,-1]
[null,null,null,null,null,-1]
[null,null,null,null,null,-1]
[null,null,null,null,null,-1]
[null,null,null,null,null,-1]
[null,null,null,null,null,-1]
[null,null,null,null,null,-1]
[null,null,null,null,null,-1]
[null,null,null,null,null,-1]
[null,null,null,null,null,-1]
[null,null,null,null,null,-1]
[null,null,null,null,null,-1]
[null,null,null,null,null,-1]
[null,null,null,null,null,-1]
[null,null,null,null,null,-1]
[null,null,null,null,null,-1]
[null,null,null,null,null,-1]
[null,null,null,null,null,-1]
[null,null,null,null,null,-1]
[null,null,null,null,null,-1]
[null,null,null,null,null,-1]
[null,null,null,null,null,-1]
[null,null,null,null,null,-1]
[null,null,null,null,null,{"$f":"IF(COUNT(A99651:E99651)>0,E99651+D99651*10+C99651*100+B99651*1000+A99651*10000,-1)","v":-1}]
[null,null,null,null,null,-1]
[null,null,null,null,null,-1]
[null,null,null,null,null,-1]
[null,null,null,null,null,-1]
[null,null,null,null,null,-1]
[null,null,null,null,null,-1]
[null,null,null,null,null,-1]
[null,null,null,null,null,-1]
[null,null,null,null,null,-1]
[null,null,null,null,null,-1]
[null,null,null,null,null,-1]
[null,null,null,null,null,-1]
[null,null,null,null,null,-1]
[null,null,null,null,null,-1]
[null,null,null,null,null,-1]
[null,null,null,null,null,-1]
[null,null,null,null,null,-1]
[null,null,null,null,null,-1]
[null,null,null,null,null,-1]
[null,null,null,null,null,-1]
[null,null,null,null,null,-1]
[null,null,null,null,null,-1]
[null,null,null,null,null,-1]
[null,null,null,null,null,-1]
[null,null,null,null,null,-1]
[null,null,null,null,null,-1]
[null,null,null,null,null,-1]
[null,null,null,null,null,-1]
[null,null,null,null,null,-1]
[null,null,null,null,null,-1]
[null,null,null,null,null,-1]
[null,null,null,null,null,-1]
[null,null,null,null,null,-1]
[null,null,null,null,null,-1]
[null,null,null,null,null,-1]
[null,null,null,null,null,-1]
[null,null,null,null,null,-1]
[null,null,null,null,null,-1]
[null,null,null,null,null,-1]
[null,null,null,null,null,-1]
[null,null,null,null,null,-1]
[null,null,null,null,null,-1]
[null,null,null,null,null,-1]
[null,null,null,null,null,-1]
[null,null,null,null,null,-1]
[null,null,null,null,null,-1]
[null,null,null,null,null,-1]
[null,null,null,null,null,-1]
[null,null,null,null,null,-1]
[null,null,null,null,null,-1]
[null,null,null,null,null,-1]
[null,null,null,null,null,-1]
[null,null,null,null,null,-1]
[null,null,null,null,null,-1]
[null,null,null,null,null,-1]
[null,null,null,null,null,-1]
[null,null,null,null,null,-1]
[null,null,null,null,null,-1]
[null,null,null,null,null,-1]
[null,null,null,null,null,-1]
[null,null,null,null,null,-1]
[null,null,null,null,null,-1]
[null,null,null,null,null,-1]
[null,null,null,null,null,{"$f":"IF(COUNT(A99715:E99715)>0,E99715+D99715*10+C99715*100+B99715*1000+A99715*10000,-1)","v":-1}]
[null,null,null,null,null,-1]
[null,null,null,null,null,-1]
[null,null,null,null,null,-1]
[null,null,null,null,null,-1]
[null,null,null,null,null,-1]
[null,null,null,null,null,-1]
[null,null,null,null,null,-1]
[null,null,null,null,null,-1]
[null,null,null,null,null,-1]
[null,null,null,null,null,-1]
[null,null,null,null,null,-1]
[null,null,null,null,null,-1]
[null,null,null,null,null,-1]
[null,null,null,null,null,-1]
[null,null,null,null,null,-1]
[null,null,null,null,null,-1]
[null,null,null,null,null,-1]
[null,null,null,null,null,-1]
[null,null,null,null,null,-1]
[null,null,null,null,null,-1]
[null,null,null,null,null,-1]
[null,null,null,null,null,-1]
[null,null,null,null,null,-1]
[null,null,null,null,null,-1]
[null,null,null,null,null,-1]
[null,null,null,null,null,-1]
[null,null,null,null,null,-1]
[null,null,null,null,null,-1]
[null,null,null,null,null,-1]
[null,null,null,null,null,-1]
[null,null,null,null,null,-1]
[null,null,null,null,null,-1]
[null,null,null,null,null,-1]
[null,null,null,null,null,-1]
[null,null,null,null,null,-1]
[null,null,null,null,null,-1]
[null,null,null,null,null,-1]
[null,null,null,null,null,-1]
[null,null,null,null,null,-1]
[null,null,null,null,null,-1]
[null,null,null,null,null,-1]
[null,null,null,null,null,-1]
[null,null,null,null,null,-1]
[null,null,null,null,null,-1]
[null,null,null,null,null,-1]
[null,null,null,null,null,-1]
[null,null,null,null,null,-1]
[null,null,null,null,null,-1]
[null,null,null,null,null,-1]
[null,null,null,null,null,-1]
[null,null,null,null,null,-1]
[null,null,null,null,null,-1]
[null,null,null,null,null,-1]
[null,null,null,null,null,-1]
[null,null,null,null,null,-1]
[null,null,null,null,null,-1]
[null,null,null,null,null,-1]
[null,null,null,null,null,-1]
[null,null,null,null,null,-1]
[null,null,null,null,null,-1]
[null,null,null,null,null,-1]
[null,null,null,null,null,-1]
[null,null,null,null,null,-1]
[null,null,null,null,null,{"$f":"IF(COUNT(A99779:E99779)>0,E99779+D99779*10+C99779*100+B99779*1000+A99779*10000,-1)","v":-1}]
[null,null,null,null,null,-1]
[null,null,null,null,null,-1]
[null,null,null,null,null,-1]
[null,null,null,null,null,-1]
[null,null,null,null,null,-1]
[null,null,null,null,null,-1]
[null,null,null,null,null,-1]
[null,null,null,null,null,-1]
[null,null,null,null,null,-1]
[null,null,null,null,null,-1]
[null,null,null,null,null,-1]
[null,null,null,null,null,-1]
[null,null,null,null,null,-1]
[null,null,null,null,null,-1]
[null,null,null,null,null,-1]
[null,null,null,null,null,-1]
[null,null,null,null,null,-1]
[null,null,null,null,null,-1]
[null,null,null,null,null,-1]
[null,null,null,null,null,-1]
[null,null,null,null,null,-1]
[null,null,null,null,null,-1]
[null,null,null,null,null,-1]
[null,null,null,null,null,-1]
[null,null,null,null,null,-1]
[null,null,null,null,null,-1]
[null,null,null,null,null,-1]
[null,null,null,null,null,-1]
[null,null,null,null,null,-1]
[null,null,null,null,null,-1]
[null,null,null,null,null,-1]
[null,null,null,null,null,-1]
[null,null,null,null,null,-1]
[null,null,null,null,null,-1]
[null,null,null,null,null,-1]
[null,null,null,null,null,-1]
[null,null,null,null,null,-1]
[null,null,null,null,null,-1]
[null,null,null,null,null,-1]
[null,null,null,null,null,-1]
[null,null,null,null,null,-1]
[null,null,null,null,null,-1]
[null,null,null,null,null,-1]
[null,null,null,null,null,-1]
[null,null,null,null,null,-1]
[null,null,null,null,null,-1]
[null,null,null,null,null,-1]
[null,null,null,null,null,-1]
[null,null,null,null,null,-1]
[null,null,null,null,null,-1]
[null,null,null,null,null,-1]
[null,null,null,null,null,-1]
[null,null,null,null,null,-1]
[null,null,null,null,null,-1]
[null,null,null,null,null,-1]
[null,null,null,null,null,-1]
[null,null,null,null,null,-1]
[null,null,null,null,null,-1]
[null,null,null,null,null,-1]
[null,null,null,null,null,-1]
[null,null,null,null,null,-1]
[null,null,null,null,null,-1]
[null,null,null,null,null,-1]
[null,null,null,null,null,{"$f":"IF(COUNT(A99843:E99843)>0,E99843+D99843*10+C99843*100+B99843*1000+A99843*10000,-1)","v":-1}]
[null,null,null,null,null,-1]
[null,null,null,null,null,-1]
[null,null,null,null,null,-1]
[null,null,null,null,null,-1]
[null,null,null,null,null,-1]
[null,null,null,null,null,-1]
[null,null,null,null,null,-1]
[null,null,null,null,null,-1]
[null,null,null,null,null,-1]
[null,null,null,null,null,-1]
[null,null,null,null,null,-1]
[null,null,null,null,null,-1]
[null,null,null,null,null,-1]
[null,null,null,null,null,-1]
[null,null,null,null,null,-1]
[null,null,null,null,null,-1]
[null,null,null,null,null,-1]
[null,null,null,null,null,-1]
[null,null,null,null,null,-1]
[null,null,null,null,null,-1]
[null,null,null,null,null,-1]
[null,null,null,null,null,-1]
[null,null,null,null,null,-1]
[null,null,null,null,null,-1]
[null,null,null,null,null,-1]
[null,null,null,null,null,-1]
[null,null,null,null,null,-1]
[null,null,null,null,null,-1]
[null,null,null,null,null,-1]
[null,null,null,null,null,-1]
[null,null,null,null,null,-1]
[null,null,null,null,null,-1]
[null,null,null,null,null,-1]
[null,null,null,null,null,-1]
[null,null,null,null,null,-1]
[null,null,null,null,null,-1]
[null,null,null,null,null,-1]
[null,null,null,null,null,-1]
[null,null,null,null,null,-1]
[null,null,null,null,null,-1]
[null,null,null,null,null,-1]
[null,null,null,null,null,-1]
[null,null,null,null,null,-1]
[null,null,null,null,null,-1]
[null,null,null,null,null,-1]
[null,null,null,null,null,-1]
[null,null,null,null,null,-1]
[null,null,null,null,null,-1]
[null,null,null,null,null,-1]
[null,null,null,null,null,-1]
[null,null,null,null,null,-1]
[null,null,null,null,null,-1]
[null,null,null,null,null,-1]
[null,null,null,null,null,-1]
[null,null,null,null,null,-1]
[null,null,null,null,null,-1]
[null,null,null,null,null,-1]
[null,null,null,null,null,-1]
[null,null,null,null,null,-1]
[null,null,null,null,null,-1]
[null,null,null,null,null,-1]
[null,null,null,null,null,-1]
[null,null,null,null,null,-1]
[null,null,null,null,null,{"$f":"IF(COUNT(A99907:E99907)>0,E99907+D99907*10+C99907*100+B99907*1000+A99907*10000,-1)","v":-1}]
[null,null,null,null,null,-1]
[null,null,null,null,null,-1]
[null,null,null,null,null,-1]
[null,null,null,null,null,-1]
[null,null,null,null,null,-1]
[null,null,null,null,null,-1]
[null,null,null,null,null,-1]
[null,null,null,null,null,-1]
[null,null,null,null,null,-1]
[null,null,null,null,null,-1]
[null,null,null,null,null,-1]
[null,null,null,null,null,-1]
[null,null,null,null,null,-1]
[null,null,null,null,null,-1]
[null,null,null,null,null,-1]
[null,null,null,null,null,-1]
[null,null,null,null,null,-1]
[null,null,null,null,null,-1]
[null,null,null,null,null,-1]
[null,null,null,null,null,-1]
[null,null,null,null,null,-1]
[null,null,null,null,null,-1]
[null,null,null,null,null,-1]
[null,null,null,null,null,-1]
[null,null,null,null,null,-1]
[null,null,null,null,null,-1]
[null,null,null,null,null,-1]
[null,null,null,null,null,-1]
[null,null,null,null,null,-1]
[null,null,null,null,null,-1]
[null,null,null,null,null,-1]
[null,null,null,null,null,-1]
[null,null,null,null,null,-1]
[null,null,null,null,null,-1]
[null,null,null,null,null,-1]
[null,null,null,null,null,-1]
[null,null,null,null,null,-1]
[null,null,null,null,null,-1]
[null,null,null,null,null,-1]
[null,null,null,null,null,-1]
[null,null,null,null,null,-1]
[null,null,null,null,null,-1]
[null,null,null,null,null,-1]
[null,null,null,null,null,-1]
[null,null,null,null,null,-1]
[null,null,null,null,null,-1]
[null,null,null,null,null,-1]
[null,null,null,null,null,-1]
[null,null,null,null,null,-1]
[null,null,null,null,null,-1]
[null,null,null,null,null,-1]
[null,null,null,null,null,-1]
[null,null,null,null,null,-1]
[null,null,null,null,null,-1]
[null,null,null,null,null,-1]
[null,null,null,null,null,-1]
[null,null,null,null,null,-1]
[null,null,null,null,null,-1]
[null,null,null,null,null,-1]
[null,null,null,null,null,-1]
[null,null,null,null,null,-1]
[null,null,null,null,null,-1]
[null,null,null,null,null,-1]
[null,null,null,null,null,{"$f":"IF(COUNT(A99971:E99971)>0,E99971+D99971*10+C99971*100+B99971*1000+A99971*10000,-1)","v":-1}]
[null,null,null,null,null,-1]
[null,null,null,null,null,-1]
[null,null,null,null,null,-1]
[null,null,null,null,null,-1]
[null,null,null,null,null,-1]
[null,null,null,null,null,-1]
[null,null,null,null,null,-1]
[null,null,null,null,null,-1]
[null,null,null,null,null,-1]
[null,null,null,null,null,-1]
[null,null,null,null,null,-1]
[null,null,null,null,null,-1]
[null,null,null,null,null,-1]
[null,null,null,null,null,-1]
[null,null,null,null,null,-1]
[null,null,null,null,null,-1]
[null,null,null,null,null,-1]
[null,null,null,null,null,-1]
[null,null,null,null,null,-1]
[null,null,null,null,null,-1]
[null,null,null,null,null,-1]
[null,null,null,null,null,-1]
[null,null,null,null,null,-1]
[null,null,null,null,null,-1]
[null,null,null,null,null,-1]
[null,null,null,null,null,-1]
[null,null,null,null,null,-1]
[null,null,null,null,null,-1]
[null,null,null,null,null,-1]

{"sheet":"Instructions","index":1,"n_rows":0,"n_cols":0,"rows_kept":0,"cut":false,"hidden":false,"merged":[[0,0,16,10]]}

{"sheet":"Reference Information","index":2,"n_rows":0,"n_cols":0,"rows_kept":0,"cut":false,"hidden":false,"merged":[[0,0,16,11]]}